Body Name,ONS SNAC ID,Pay Date,Transaction No,Amount �,Supplier Name,Company Registration No,Department,Account Name,CIPFA Service Reporting
Swale Borough Council,29UM,03/10/2018,1162592,495.00,A T BLINDS,                         ,PROPERTY SERVICES,Buildings Maintenance,Corporate & Democratic Core
Swale Borough Council,29UM,03/10/2018,1162679,9106.43,ACORN MAINTENANCE SERVICES,3546898                  ,HOUSING SERVICES,Housing Renovation Grants,Not used in this Structure
Swale Borough Council,29UM,03/10/2018,1162283,387.89,ADELANTE SOFTWARE LTD,4450760                  ,REVENUE SERVICES,Commission Paid,Central Services to the Public
Swale Borough Council,29UM,03/10/2018,1162283,2.93,ADELANTE SOFTWARE LTD,4450760                  ,REVENUE SERVICES,Commission Paid,Housing
Swale Borough Council,29UM,03/10/2018,1162283,220.23,ADELANTE SOFTWARE LTD,4450760                  ,EXCHEQUER,Commission Paid,Internal Trading Cost Centres
Swale Borough Council,29UM,03/10/2018,1162294,2965.71,ASTRAL PUBLIC SERVICES LIMITED,                         ,HOUSING SERVICES,Fees and Services,Housing
Swale Borough Council,29UM,03/10/2018,1162578,804.00,ATLAS FACILITIES MANAGEMENT LTD,05572730                 ,PROPERTY SERVICES,Fees and Services,Trading Undertaking
Swale Borough Council,29UM,03/10/2018,1162477,1375.00,BATES JPW ADVERTISING LTD,784540                   ,HOUSING SERVICES,Advertising & Promo - Ext Fund by Grant & Other Income,Housing
Swale Borough Council,29UM,03/10/2018,1162657,255.53,BLENWOOD LTD,4383277                  ,LEISURE & OPEN SPACES,Maintenance - Grounds,Environmental and Regulatory Services
Swale Borough Council,29UM,03/10/2018,1162659,933.10,BLENWOOD LTD,4383277                  ,LEISURE & OPEN SPACES,Maintenance - Grounds,Environmental and Regulatory Services
Swale Borough Council,29UM,03/10/2018,1162660,285.53,BLENWOOD LTD,4383277                  ,LEISURE & OPEN SPACES,Maintenance - Grounds,Environmental and Regulatory Services
Swale Borough Council,29UM,03/10/2018,1162664,334.37,BLENWOOD LTD,4383277                  ,LEISURE & OPEN SPACES,Maintenance - Grounds,Cultural and Related Services
Swale Borough Council,29UM,03/10/2018,1162639,3935.64,BROADWAY ESTATES,                         ,REVENUE SERVICES,KCC Relocation Scheme - Expenditure,Housing
Swale Borough Council,29UM,03/10/2018,1162591,-3823.49,CAFFYNS PLC,                         ,FINANCIAL SERVICES,Repaid By New Car Loan,Ledger/Suspense Codes
Swale Borough Council,29UM,03/10/2018,1162591,13776.49,CAFFYNS PLC,                         ,FINANCIAL SERVICES,Payments in Year,Ledger/Suspense Codes
Swale Borough Council,29UM,03/10/2018,1162410,2008.71,CASTLE WATER LIMITED,SC475583                 ,CONTRACT & PROCUREMENT,Water - Metered,Environmental and Regulatory Services
Swale Borough Council,29UM,03/10/2018,1162479,300.00,COHESION PLUS KENT,6924474                  ,ECONOMY & COMMUNITIES,Grants & Subscriptions,Central Services to the Public
Swale Borough Council,29UM,03/10/2018,1162495,351.00,DODS PARLIAMENTARY COMMUNICATIONS LTD,                         ,CHIEF EXECUTIVE,Conference,Internal Trading Cost Centres
Swale Borough Council,29UM,03/10/2018,1162317,2500.00,DOLPHIN STAIRLIFTS (KENT),04181846                 ,HOUSING SERVICES,Staying Put small repairs (contractors),Housing
Swale Borough Council,29UM,03/10/2018,1162474,496.00,ERGRO TECHNICAL SERVICES LTD,                         ,PROPERTY SERVICES,Service Contracts,Corporate & Democratic Core
Swale Borough Council,29UM,03/10/2018,1162638,500.00,FRIENDS OF OARE GUNPOWDER WORKS,                         ,LEISURE & OPEN SPACES,Grants & Subscriptions,Cultural and Related Services
Swale Borough Council,29UM,03/10/2018,1162450,2249.10,GODFREY SYRETT LTD,751094                   ,PROPERTY SERVICES,Equipment Purchase,Corporate & Democratic Core
Swale Borough Council,29UM,03/10/2018,1162534,11692.00,GRANT THORNTON UK LLP,                         ,DIRECTOR OF CORPORATE SERVICES,External Audit Fee,Corporate & Democratic Core
Swale Borough Council,29UM,03/10/2018,1162581,950.00,REDACTED PERSONAL INFORMATION,                         ,HOUSING SERVICES,RDS - Landlord claim on Bond Scheme,Housing
Swale Borough Council,29UM,03/10/2018,1162308,270.00,HILDERBRANDS REMOVALS & STORAGE LTD,                         ,HOUSING SERVICES,Storage Expenses,Housing
Swale Borough Council,29UM,03/10/2018,1162595,458.00,HOUND ENVELOPES LTD,4802560                  ,DEMOCRATIC & ELECTORAL SERVICES,Stationery,Central Services to the Public
Swale Borough Council,29UM,03/10/2018,1162551,1001.52,IDOX SOFTWARE LTD,06706798                 ,DEMOCRATIC & ELECTORAL SERVICES,Fees and Services,Central Services to the Public
Swale Borough Council,29UM,03/10/2018,1162552,616.80,IDOX SOFTWARE LTD,06706798                 ,DEMOCRATIC & ELECTORAL SERVICES,Equipment Maintenance,Central Services to the Public
Swale Borough Council,29UM,03/10/2018,1162553,4397.75,IDOX SOFTWARE LTD,06706798                 ,DEMOCRATIC & ELECTORAL SERVICES,Fees and Services,Central Services to the Public
Swale Borough Council,29UM,03/10/2018,1162682,4370.00,J & D SYSTEMS,                         ,HOUSING SERVICES,Housing Renovation Grants,Not used in this Structure
Swale Borough Council,29UM,03/10/2018,1162683,3174.00,J & D SYSTEMS,                         ,HOUSING SERVICES,Housing Renovation Grants,Not used in this Structure
Swale Borough Council,29UM,03/10/2018,1161986,50.00,J N CLEARANCE,                         ,CONTRACT & PROCUREMENT,Equipment Maintenance,Environmental and Regulatory Services
Swale Borough Council,29UM,03/10/2018,1161986,850.00,J N CLEARANCE,                         ,CONTRACT & PROCUREMENT,"Clearance Of Waste,Fly Tipping",Environmental and Regulatory Services
Swale Borough Council,29UM,03/10/2018,1161986,1125.00,J N CLEARANCE,                         ,CONTRACT & PROCUREMENT,Private Contractors,Environmental and Regulatory Services
Swale Borough Council,29UM,03/10/2018,1161987,275.00,J N CLEARANCE,                         ,CONTRACT & PROCUREMENT,"Clearance Of Waste,Fly Tipping",Environmental and Regulatory Services
Swale Borough Council,29UM,03/10/2018,1162269,1500.00,KENT COUNTY COUNCIL,                         ,CONTRACT & PROCUREMENT,Fees and Services,Internal Trading Cost Centres
Swale Borough Council,29UM,03/10/2018,1162435,1169.12,KENT COUNTY COUNCIL,                         ,SERVICE DELIVERY,Fees and Services,Highway and Transport Services
Swale Borough Council,29UM,03/10/2018,1162550,2625.00,KENT COUNTY COUNCIL (KCS),                         ,PROPERTY SERVICES,Service Contracts,Corporate & Democratic Core
Swale Borough Council,29UM,03/10/2018,1162611,309.30,LYRECO UK LTD,                         ,PROPERTY SERVICES,Paper,Internal Trading Cost Centres
Swale Borough Council,29UM,03/10/2018,1162299,1134.00,MAGEES GUESTHOUSE,                         ,HOUSING SERVICES,B & B - Homelessness Landlord Payments,Housing
Swale Borough Council,29UM,03/10/2018,1162484,1134.00,MAGEES GUESTHOUSE,                         ,HOUSING SERVICES,B & B - Homelessness Landlord Payments,Housing
Swale Borough Council,29UM,03/10/2018,1162049,11661.02,MATRIX SCM LTD,2227962                  ,HUMAN RESOURCES,Agency/Contract Staff,Internal Trading Cost Centres
Swale Borough Council,29UM,03/10/2018,1162223,9675.24,MATRIX SCM LTD,2227962                  ,HUMAN RESOURCES,Agency/Contract Staff,Internal Trading Cost Centres
Swale Borough Council,29UM,03/10/2018,1162338,11424.89,MATRIX SCM LTD,2227962                  ,HUMAN RESOURCES,Agency/Contract Staff,Internal Trading Cost Centres
Swale Borough Council,29UM,03/10/2018,1162546,16003.16,MATRIX SCM LTD,2227962                  ,HUMAN RESOURCES,Agency/Contract Staff,Internal Trading Cost Centres
Swale Borough Council,29UM,03/10/2018,1162265,1224.00,MEDWAY ACCOMMODATION LIMITED,                         ,HOUSING SERVICES,B & B - Homelessness Landlord Payments,Housing
Swale Borough Council,29UM,03/10/2018,1162265,255.00,MEDWAY ACCOMMODATION LIMITED,                         ,HOUSING SERVICES,B & B - Homelessness Landlord Payments,Housing
Swale Borough Council,29UM,03/10/2018,1162266,301.67,MEDWAY ACCOMMODATION LIMITED,                         ,HOUSING SERVICES,B & B - Homelessness Landlord Payments,Housing
Swale Borough Council,29UM,03/10/2018,1162266,1448.00,MEDWAY ACCOMMODATION LIMITED,                         ,HOUSING SERVICES,B & B - Homelessness Landlord Payments,Housing
Swale Borough Council,29UM,03/10/2018,1162460,916.00,MEDWAY ACCOMMODATION LIMITED,                         ,HOUSING SERVICES,B & B - Homelessness Landlord Payments,Housing
Swale Borough Council,29UM,03/10/2018,1162460,190.83,MEDWAY ACCOMMODATION LIMITED,                         ,HOUSING SERVICES,B & B - Homelessness Landlord Payments,Housing
Swale Borough Council,29UM,03/10/2018,1162116,55842.04,MEDWAY COUNCIL,                         ,PLANNING SERVICES,Payments in Year,Ledger/Suspense Codes
Swale Borough Council,29UM,03/10/2018,1162154,3000.00,MEDWAY COUNCIL,                         ,PLANNING SERVICES,Fees and Services,Planning and Development Services
Swale Borough Council,29UM,03/10/2018,1162486,3000.00,MISHCON DE RAYA LLP,OC399969                 ,FINANCIAL SERVICES,Legal Fees,Internal Trading Cost Centres
Swale Borough Council,29UM,03/10/2018,1162486,600.00,MISHCON DE RAYA LLP,OC399969                 ,FINANCIAL SERVICES,Legal Fees,Internal Trading Cost Centres
Swale Borough Council,29UM,03/10/2018,1162622,371.62,MPS MARKETING SERVICES LIMITED,6360656                  ,DEMOCRATIC & ELECTORAL SERVICES,Fees and Services,Central Services to the Public
Swale Borough Council,29UM,03/10/2018,1162267,441.00,REDACTED PERSONAL INFORMATION,                         ,HOUSING SERVICES,B & B - Homelessness Landlord Payments,Housing
Swale Borough Council,29UM,03/10/2018,1162459,791.00,REDACTED PERSONAL INFORMATION,                         ,HOUSING SERVICES,B & B - Homelessness Landlord Payments,Housing
Swale Borough Council,29UM,03/10/2018,1162454,548.32,NORTHSHORE DESIGNS LIMITED,                         ,ENVIRONMENTAL RESPONSE TEAM,Protective Clothing,Internal Trading Cost Centres
Swale Borough Council,29UM,03/10/2018,1162585,348.34,PREMIER PAPER GROUP LTD,                         ,PROPERTY SERVICES,Paper,Internal Trading Cost Centres
Swale Borough Council,29UM,03/10/2018,1162676,75577.13,QUEENBOROUGH HARBOUR TRUST,                         ,ECONOMIC DEVELOPMENT,Payments in Year,Ledger/Suspense Codes
Swale Borough Council,29UM,03/10/2018,1162566,445.00,ROSE REMOVALS,7572105                  ,HOUSING SERVICES,Storage Expenses,Housing
Swale Borough Council,29UM,03/10/2018,1162340,4500.00,RSK ADAS LTD,10486936                 ,LEISURE & OPEN SPACES,Capitalised Fees And Charges,Not used in this Structure
Swale Borough Council,29UM,03/10/2018,1162341,2846.00,RSK ADAS LTD,10486936                 ,LEISURE & OPEN SPACES,Capitalised Fees And Charges,Not used in this Structure
Swale Borough Council,29UM,03/10/2018,1162436,900.00,REDACTED PERSONAL INFORMATION,                         ,HOUSING SERVICES,RDS - Landlord claim on Bond Scheme,Housing
Swale Borough Council,29UM,03/10/2018,1162558,2500.00,REDACTED PERSONAL INFORMATION,                         ,TOURISM & SPORTS DEVELOPMENT,Fees and Services,Cultural and Related Services
Swale Borough Council,29UM,03/10/2018,1162273,3859.32,SCOTTISH WATER BUSINESS STREAM LTD,SC294924                 ,CONTRACT & PROCUREMENT,Water - Metered,Environmental and Regulatory Services
Swale Borough Council,29UM,03/10/2018,1162485,600.00,SWALE SAFE LIMITED,                         ,COMMUNITY SAFETY,Grants & Subscriptions,Planning and Development Services
Swale Borough Council,29UM,03/10/2018,1162434,3942.00,SWECO UK LTD,2888385                  ,MKS ENVIRONMENTAL SERVICES,Kcc Air Pollution Monitoring,Environmental and Regulatory Services
Swale Borough Council,29UM,03/10/2018,1162678,14185.00,TERRY GROUP LIMITED,1683339                  ,HOUSING SERVICES,Housing Renovation Grants,Not used in this Structure
Swale Borough Council,29UM,03/10/2018,1162339,1444.00,THE OYSTER PARTNERSHIP,05020374                 ,PLANNING SERVICES,Agency/Contract Staff,Planning and Development Services
Swale Borough Council,29UM,03/10/2018,1162270,1362.00,TRAFALGAR TAVERN LTD,07999329                 ,HOUSING SERVICES,B & B - Homelessness Landlord Payments,Housing
Swale Borough Council,29UM,03/10/2018,1162442,-33.52,UNISON,                         ,HUMAN RESOURCES,Payroll - Unison Deductions Admin Charge,Corporate & Democratic Core
Swale Borough Council,29UM,03/10/2018,1162463,425.47,VR SANI-CO LTD,3588359                  ,CONTRACT & PROCUREMENT,Hygiene Service Contracts,Environmental and Regulatory Services
Swale Borough Council,29UM,03/10/2018,1162537,650.00,WEST KENT MIND,                         ,COMMUNITY SAFETY,Fees and Services,Planning and Development Services
Swale Borough Council,29UM,03/10/2018,1160862,9995.00,WICKSTEED LEISURE LTD,00603152                 ,LEISURE & OPEN SPACES,Construction,Not used in this Structure
Swale Borough Council,29UM,03/10/2018,1162324,384.00,WILLOW TREE HOME SOLUTIONS LTD,                         ,HOUSING SERVICES,Staying Put small repairs (contractors),Housing
Swale Borough Council,29UM,03/10/2018,1162325,260.00,WILLOW TREE HOME SOLUTIONS LTD,                         ,HOUSING SERVICES,Staying Put small repairs (contractors),Housing
Swale Borough Council,29UM,03/10/2018,1162326,466.00,WILLOW TREE HOME SOLUTIONS LTD,                         ,HOUSING SERVICES,Staying Put small repairs (contractors),Housing
Swale Borough Council,29UM,03/10/2018,1162572,605.50,WILLOW TREE HOME SOLUTIONS LTD,                         ,HOUSING SERVICES,Staying Put small repairs (contractors),Housing
Swale Borough Council,29UM,03/10/2018,1162573,330.00,WILLOW TREE HOME SOLUTIONS LTD,                         ,HOUSING SERVICES,Staying Put small repairs (contractors),Housing
Swale Borough Council,29UM,03/10/2018,1162575,330.00,WILLOW TREE HOME SOLUTIONS LTD,                         ,HOUSING SERVICES,Staying Put small repairs (contractors),Housing
Swale Borough Council,29UM,03/10/2018,1162643,690.00,WILLOW TREE HOME SOLUTIONS LTD,                         ,HOUSING SERVICES,Staying Put small repairs (contractors),Housing
Swale Borough Council,29UM,03/10/2018,1162645,1120.00,WILLOW TREE HOME SOLUTIONS LTD,                         ,HOUSING SERVICES,Staying Put small repairs (contractors),Housing
Swale Borough Council,29UM,03/10/2018,1162680,9945.00,WILLOW TREE HOME SOLUTIONS LTD,                         ,HOUSING SERVICES,Housing Renovation Grants,Not used in this Structure
Swale Borough Council,29UM,03/10/2018,1162681,5553.64,WILLOW TREE HOME SOLUTIONS LTD,                         ,HOUSING SERVICES,Housing Renovation Grants,Not used in this Structure
Swale Borough Council,29UM,03/10/2018,1162285,9999.60,WYBONE LTD,952455                   ,CONTRACT & PROCUREMENT,Equipment Purchase,Environmental and Regulatory Services
Swale Borough Council,29UM,10/10/2018,1162684,375.00,A T BLINDS,                         ,PROPERTY SERVICES,Buildings Maintenance,Corporate & Democratic Core
Swale Borough Council,29UM,10/10/2018,1162662,633.08,BLENWOOD LTD,4383277                  ,PROPERTY SERVICES,Non-Planned Building Maintenance,Trading Undertaking
Swale Borough Council,29UM,10/10/2018,1162663,3965.35,BLENWOOD LTD,4383277                  ,LEISURE & OPEN SPACES,Maintenance - Grounds,Environmental and Regulatory Services
Swale Borough Council,29UM,10/10/2018,1162666,991.41,BLENWOOD LTD,4383277                  ,LEISURE & OPEN SPACES,Maintenance - Grounds Contract,Cultural and Related Services
Swale Borough Council,29UM,10/10/2018,1162700,6500.00,CUSHMAN & WAKEFIELD DEBENHAM T L LTD,2757768                  ,PROPERTY SERVICES,Fees and Services,Trading Undertaking
Swale Borough Council,29UM,10/10/2018,1162689,308.00,DISCLOSURE & BARRING SERVICE (DT),                         ,LICENCING,Fees and Services,Environmental and Regulatory Services
Swale Borough Council,29UM,10/10/2018,1162752,2250.00,FIRST STOP HOUSING SOLUTION LTD,                         ,HOUSING SERVICES,NL (Nightly Lets) - Homelessness Landlord Payments,Housing
Swale Borough Council,29UM,10/10/2018,1162819,5242.50,GREENS GROUNDWORK,                         ,HOUSING SERVICES,Housing Renovation Grants,Not used in this Structure
Swale Borough Council,29UM,10/10/2018,1162760,497.00,HUBBARD & HOUGHTON CONSTRUCTION LTD,                         ,HOUSING SERVICES,Staying Put small repairs (contractors),Housing
Swale Borough Council,29UM,10/10/2018,1162757,600.00,INFORM CPI LTD,                         ,REVENUE SERVICES,NNDR Additional Rateable Values,Central Services to the Public
Swale Borough Council,29UM,10/10/2018,1162834,3937.75,INVICTA BODY REPAIRS LTD,09709956                 ,ENVIRONMENTAL RESPONSE TEAM,Insurance Repair,Internal Trading Cost Centres
Swale Borough Council,29UM,10/10/2018,1162834,-3937.75,INVICTA BODY REPAIRS LTD,09709956                 ,ENVIRONMENTAL RESPONSE TEAM,Insurance Settlement Lease Cars,Internal Trading Cost Centres
Swale Borough Council,29UM,10/10/2018,1162834,250.00,INVICTA BODY REPAIRS LTD,09709956                 ,ENVIRONMENTAL RESPONSE TEAM,Insurance Excess Rental Car,Internal Trading Cost Centres
Swale Borough Council,29UM,10/10/2018,1162670,700.00,J N CLEARANCE,                         ,CONTRACT & PROCUREMENT,"Clearance Of Waste,Fly Tipping",Environmental and Regulatory Services
Swale Borough Council,29UM,10/10/2018,1162670,825.00,J N CLEARANCE,                         ,CONTRACT & PROCUREMENT,Private Contractors,Environmental and Regulatory Services
Swale Borough Council,29UM,10/10/2018,1162780,127283.75,JOHN COPLAND & SON SOLICITORS,                         ,HOUSING SERVICES,Payments in Year,Ledger/Suspense Codes
Swale Borough Council,29UM,10/10/2018,1162740,2850.00,LEMAR LIMITED,04350292                 ,SERVICE DELIVERY,Private Contractors - CIS,Highway and Transport Services
Swale Borough Council,29UM,10/10/2018,1162740,2500.00,LEMAR LIMITED,04350292                 ,SERVICE DELIVERY,Private Contractors - CIS,Highway and Transport Services
Swale Borough Council,29UM,10/10/2018,1162744,250.00,LEMAR LIMITED,04350292                 ,SERVICE DELIVERY,Private Contractors - CIS,Highway and Transport Services
Swale Borough Council,29UM,10/10/2018,1162744,115.00,LEMAR LIMITED,04350292                 ,SERVICE DELIVERY,Private Contractors - CIS,Highway and Transport Services
Swale Borough Council,29UM,10/10/2018,1162745,300.00,LEMAR LIMITED,04350292                 ,SERVICE DELIVERY,Private Contractors - CIS,Highway and Transport Services
Swale Borough Council,29UM,10/10/2018,1162745,204.00,LEMAR LIMITED,04350292                 ,SERVICE DELIVERY,Private Contractors - CIS,Highway and Transport Services
Swale Borough Council,29UM,10/10/2018,1162704,959.00,MAGEES GUESTHOUSE,                         ,HOUSING SERVICES,B & B - Homelessness Landlord Payments,Housing
Swale Borough Council,29UM,10/10/2018,1162635,16971.15,MAIDSTONE BOROUGH COUNCIL,                         ,CONTRACT & PROCUREMENT,Equipment Purchase,Environmental and Regulatory Services
Swale Borough Council,29UM,10/10/2018,1162636,73754.43,MAIDSTONE BOROUGH COUNCIL,                         ,CONTRACT & PROCUREMENT,Private Contractors,Environmental and Regulatory Services
Swale Borough Council,29UM,10/10/2018,1162636,201020.39,MAIDSTONE BOROUGH COUNCIL,                         ,CONTRACT & PROCUREMENT,Private Contractors,Environmental and Regulatory Services
Swale Borough Council,29UM,10/10/2018,1162725,10000.00,MAIDSTONE BOROUGH COUNCIL,                         ,DEMOCRATIC & ELECTORAL SERVICES,Grants & Subscriptions,Corporate & Democratic Core
Swale Borough Council,29UM,10/10/2018,1162629,896.00,MEDWAY ACCOMMODATION LIMITED,                         ,HOUSING SERVICES,B & B - Homelessness Landlord Payments,Housing
Swale Borough Council,29UM,10/10/2018,1162629,186.67,MEDWAY ACCOMMODATION LIMITED,                         ,HOUSING SERVICES,B & B - Homelessness Landlord Payments,Housing
Swale Borough Council,29UM,10/10/2018,1162775,183.33,MEDWAY ACCOMMODATION LIMITED,                         ,HOUSING SERVICES,B & B - Homelessness Landlord Payments,Housing
Swale Borough Council,29UM,10/10/2018,1162775,880.00,MEDWAY ACCOMMODATION LIMITED,                         ,HOUSING SERVICES,B & B - Homelessness Landlord Payments,Housing
Swale Borough Council,29UM,10/10/2018,1162793,55491.75,MEDWAY COUNCIL,                         ,COMMUNITY SAFETY,CCTV Monitoring Service,Environmental and Regulatory Services
Swale Borough Council,29UM,10/10/2018,1162654,17994.20,MONITOR CLEANING SERVICES LTD,02526388                 ,CONTRACT & PROCUREMENT,Private Contractors,Environmental and Regulatory Services
Swale Borough Council,29UM,10/10/2018,1162621,6170.88,MPS MARKETING SERVICES LIMITED,6360656                  ,DEMOCRATIC & ELECTORAL SERVICES,Fees and Services,Central Services to the Public
Swale Borough Council,29UM,10/10/2018,1162628,1036.00,REDACTED PERSONAL INFORMATION,                         ,HOUSING SERVICES,B & B - Homelessness Landlord Payments,Housing
Swale Borough Council,29UM,10/10/2018,1162776,1036.00,REDACTED PERSONAL INFORMATION,                         ,HOUSING SERVICES,B & B - Homelessness Landlord Payments,Housing
Swale Borough Council,29UM,10/10/2018,1162764,529.50,NEW LEAF SUPPORT LTD,                         ,HOUSING SERVICES,NL (Nightly Lets) - Homelessness Landlord Payments,Housing
Swale Borough Council,29UM,10/10/2018,1162623,1094.00,REDACTED PERSONAL INFORMATION,                         ,COMMUNITY SAFETY,Maintenance - Grounds,Environmental and Regulatory Services
Swale Borough Council,29UM,10/10/2018,1162646,30549.00,PARAMOUNT INDEPENDENT PROPERTY SERVICES,                         ,HOUSING SERVICES,NL (Nightly Lets) - Homelessness Landlord Payments,Housing
Swale Borough Council,29UM,10/10/2018,1162830,15697.00,PEAC HOLDINGS (UK) LTD (DT),3088213                  ,LEISURE & OPEN SPACES,Contracts,Cultural and Related Services
Swale Borough Council,29UM,10/10/2018,1162832,15697.00,PEAC HOLDINGS (UK) LTD (DT),3088213                  ,LEISURE & OPEN SPACES,Contracts,Cultural and Related Services
Swale Borough Council,29UM,10/10/2018,1162734,290.33,PORTAKABIN LIMITED,685303                   ,LEISURE & OPEN SPACES,Maintenance - Grounds,Environmental and Regulatory Services
Swale Borough Council,29UM,10/10/2018,1162554,2156.00,REARDON PROPERTIES,                         ,HOUSING SERVICES,NL (Nightly Lets) - Homelessness Landlord Payments,Housing
Swale Borough Council,29UM,10/10/2018,1162555,2044.00,REARDON PROPERTIES,                         ,HOUSING SERVICES,NL (Nightly Lets) - Homelessness Landlord Payments,Housing
Swale Borough Council,29UM,10/10/2018,1162556,2212.00,REARDON PROPERTIES,                         ,HOUSING SERVICES,NL (Nightly Lets) - Homelessness Landlord Payments,Housing
Swale Borough Council,29UM,10/10/2018,1162557,2156.00,REARDON PROPERTIES,                         ,HOUSING SERVICES,NL (Nightly Lets) - Homelessness Landlord Payments,Housing
Swale Borough Council,29UM,10/10/2018,1162627,1080.00,REGENT GUEST HOUSE LTD,06537084                 ,HOUSING SERVICES,B & B - Homelessness Landlord Payments,Housing
Swale Borough Council,29UM,10/10/2018,1162688,1026.66,ROYAL MAIL GROUP LTD,4138203                  ,PROPERTY SERVICES,Postage,Holding Codes
Swale Borough Council,29UM,10/10/2018,1162778,314.85,SAFETY FIRST AID,622741                   ,HEALTH & SAFETY,Equipment Purchase,Corporate & Democratic Core
Swale Borough Council,29UM,10/10/2018,1162831,2968.00,SERCO PAISA LTD - (DT),04908482                 ,LEISURE & OPEN SPACES,Contracts,Cultural and Related Services
Swale Borough Council,29UM,10/10/2018,1162833,2968.00,SERCO PAISA LTD - (DT),04908482                 ,LEISURE & OPEN SPACES,Contracts,Cultural and Related Services
Swale Borough Council,29UM,10/10/2018,1162715,598.00,SHARNWOOD DEVELOPMENTS LTD,                         ,HOUSING SERVICES,RDS - Landlord claim on Bond Scheme,Housing
Swale Borough Council,29UM,10/10/2018,1162518,475.00,TOTAL CONTROL SERVICES LIMITED,02168265                 ,PROPERTY SERVICES,Non-Planned Building Maintenance,Corporate & Democratic Core
Swale Borough Council,29UM,10/10/2018,1161316,506.00,TOTAL MERCHANDISE LTD,05221288                 ,HOUSING SERVICES,Stationery,Housing
Swale Borough Council,29UM,10/10/2018,1162697,2004.00,TRAFALGAR TAVERN LTD,07999329                 ,HOUSING SERVICES,B & B - Homelessness Landlord Payments,Housing
Swale Borough Council,29UM,10/10/2018,1162690,317.68,UPM TILHILL,3242286                  ,LEISURE & OPEN SPACES,Maintenance - Grounds,Cultural and Related Services
Swale Borough Council,29UM,10/10/2018,1162482,166.57,WHISTL UK LIMITED,04417047                 ,REVENUE SERVICES,Postage,Central Services to the Public
Swale Borough Council,29UM,10/10/2018,1162482,83.28,WHISTL UK LIMITED,04417047                 ,REVENUE SERVICES,Postage,Housing
Swale Borough Council,29UM,10/10/2018,1162482,19.24,WHISTL UK LIMITED,04417047                 ,PROPERTY SERVICES,Postage,Holding Codes
Swale Borough Council,29UM,10/10/2018,1162482,0.40,WHISTL UK LIMITED,04417047                 ,DEMOCRATIC & ELECTORAL SERVICES,Postage,Central Services to the Public
Swale Borough Council,29UM,17/10/2018,1162714,240.00,A.C MACKLIN FENCING,10311550                 ,CAR PARKS,Maintenance - Grounds,Highway and Transport Services
Swale Borough Council,29UM,17/10/2018,1162714,155.00,A.C MACKLIN FENCING,10311550                 ,CAR PARKS,Maintenance - Grounds,Highway and Transport Services
Swale Borough Council,29UM,17/10/2018,1162749,500.00,A1 EVENT SERVICES,                         ,LEISURE & OPEN SPACES,Fees and Services,Cultural and Related Services
Swale Borough Council,29UM,17/10/2018,1163010,7726.95,ACORN MAINTENANCE SERVICES,3546898                  ,HOUSING SERVICES,Housing Renovation Grants,Not used in this Structure
Swale Borough Council,29UM,17/10/2018,1162719,488.79,ADELANTE SOFTWARE LTD,4450760                  ,REVENUE SERVICES,Commission Paid,Central Services to the Public
Swale Borough Council,29UM,17/10/2018,1162719,28.75,ADELANTE SOFTWARE LTD,4450760                  ,REVENUE SERVICES,Commission Paid,Housing
Swale Borough Council,29UM,17/10/2018,1162719,57.50,ADELANTE SOFTWARE LTD,4450760                  ,EXCHEQUER,Commission Paid,Internal Trading Cost Centres
Swale Borough Council,29UM,17/10/2018,1162716,2677.72,ALLPAY LTD,02933191                 ,REVENUE SERVICES,Bank Charges Pay Point,Central Services to the Public
Swale Borough Council,29UM,17/10/2018,1162716,29.17,ALLPAY LTD,02933191                 ,REVENUE SERVICES,Bank Charges Pay Point,Housing
Swale Borough Council,29UM,17/10/2018,1162716,26.87,ALLPAY LTD,02933191                 ,EXCHEQUER,Bank Charges Pay Point,Internal Trading Cost Centres
Swale Borough Council,29UM,17/10/2018,1162668,38.58,ALLSTAR BUSINESS SOLUTIONS LTD - (DT),1073098                  ,DEMOCRATIC & ELECTORAL SERVICES,Petrol/Derv & Oil,Corporate & Democratic Core
Swale Borough Council,29UM,17/10/2018,1162668,173.73,ALLSTAR BUSINESS SOLUTIONS LTD - (DT),1073098                  ,SERVICE DELIVERY,Petrol/Derv & Oil,Cultural and Related Services
Swale Borough Council,29UM,17/10/2018,1162668,383.26,ALLSTAR BUSINESS SOLUTIONS LTD - (DT),1073098                  ,ENVIRONMENTAL RESPONSE TEAM,Fuel For Contract Vehicles,Internal Trading Cost Centres
Swale Borough Council,29UM,17/10/2018,1162668,56.41,ALLSTAR BUSINESS SOLUTIONS LTD - (DT),1073098                  ,LEISURE & OPEN SPACES,Fuel For Contract Vehicles,Cultural and Related Services
Swale Borough Council,29UM,17/10/2018,1162668,85.45,ALLSTAR BUSINESS SOLUTIONS LTD - (DT),1073098                  ,ENVIRONMENTAL RESPONSE TEAM,Fuel For Contract Vehicles,Environmental and Regulatory Services
Swale Borough Council,29UM,17/10/2018,1162580,12588.64,APCOA PARKING (UK) LTD,2572947                  ,CAR PARKS,Private Contractors,Highway and Transport Services
Swale Borough Council,29UM,17/10/2018,1162580,18882.94,APCOA PARKING (UK) LTD,2572947                  ,CAR PARKS,Private Contractors,Highway and Transport Services
Swale Borough Council,29UM,17/10/2018,1162661,1737.75,BLENWOOD LTD,4383277                  ,LEISURE & OPEN SPACES,Tree Maintenance,Cultural and Related Services
Swale Borough Council,29UM,17/10/2018,1162753,965.43,BLENWOOD LTD,4383277                  ,LEISURE & OPEN SPACES,Maintenance - Grounds,Cultural and Related Services
Swale Borough Council,29UM,17/10/2018,1162726,1400.00,BLOOM PROCUREMENT SERVICES LTD,08045123                 ,FINANCIAL SERVICES,STC - Capitalised Fees And Charges,Not used in this Structure
Swale Borough Council,29UM,17/10/2018,1162726,2100.00,BLOOM PROCUREMENT SERVICES LTD,08045123                 ,FINANCIAL SERVICES,STC - Capitalised Fees And Charges,Not used in this Structure
Swale Borough Council,29UM,17/10/2018,1162900,500.00,BOUGHTON UNDER BLEAN PARISH COUNC,                         ,ECONOMY & COMMUNITIES,Grants & Subscriptions,Central Services to the Public
Swale Borough Council,29UM,17/10/2018,1162975,1246.15,BROADWAY ESTATES,                         ,REVENUE SERVICES,KCC Relocation Scheme - Expenditure,Housing
Swale Borough Council,29UM,17/10/2018,1162975,1246.15,BROADWAY ESTATES,                         ,REVENUE SERVICES,KCC Relocation Scheme - Expenditure,Housing
Swale Borough Council,29UM,17/10/2018,1162975,1142.31,BROADWAY ESTATES,                         ,REVENUE SERVICES,KCC Relocation Scheme - Expenditure,Housing
Swale Borough Council,29UM,17/10/2018,1162845,4259.52,CITY OF LONDON,                         ,MKS ENVIRONMENTAL SERVICES,Sampling / Monitoring,Environmental and Regulatory Services
Swale Borough Council,29UM,17/10/2018,1162751,3870.67,COBALT TELEPHONE TECHNOLOGIES LIMITED,03151938                 ,CAR PARKS,Fees - Licence,Highway and Transport Services
Swale Borough Council,29UM,17/10/2018,1162762,3653.72,CONTRACT SECURITY SERVICES,2461362                  ,CAR PARKS,Cash Security,Highway and Transport Services
Swale Borough Council,29UM,17/10/2018,1162590,3250.00,DAVID HUSKISSON ASSOCIATES LIMITED,2797095                  ,PLANNING SERVICES,Fees and Services,Planning and Development Services
Swale Borough Council,29UM,17/10/2018,1162815,515.20,DCB (KENT) LIMITED,03532339                 ,LEISURE & OPEN SPACES,Non-Planned Building Maintenance,Environmental and Regulatory Services
Swale Borough Council,29UM,17/10/2018,1162815,45.00,DCB (KENT) LIMITED,03532339                 ,LEISURE & OPEN SPACES,Non-Planned Building Maintenance,Environmental and Regulatory Services
Swale Borough Council,29UM,17/10/2018,1162815,22.50,DCB (KENT) LIMITED,03532339                 ,LEISURE & OPEN SPACES,Non-Planned Building Maintenance,Environmental and Regulatory Services
Swale Borough Council,29UM,17/10/2018,1162815,32.00,DCB (KENT) LIMITED,03532339                 ,LEISURE & OPEN SPACES,Non-Planned Building Maintenance,Environmental and Regulatory Services
Swale Borough Council,29UM,17/10/2018,1162815,32.00,DCB (KENT) LIMITED,03532339                 ,LEISURE & OPEN SPACES,Non-Planned Building Maintenance,Environmental and Regulatory Services
Swale Borough Council,29UM,17/10/2018,1162815,21.50,DCB (KENT) LIMITED,03532339                 ,LEISURE & OPEN SPACES,Non-Planned Building Maintenance,Environmental and Regulatory Services
Swale Borough Council,29UM,17/10/2018,1162815,1113.73,DCB (KENT) LIMITED,03532339                 ,PROPERTY SERVICES,Non-Planned Building Maintenance,Cultural and Related Services
Swale Borough Council,29UM,17/10/2018,1162815,156.37,DCB (KENT) LIMITED,03532339                 ,PROPERTY SERVICES,Non-Planned Building Maintenance,Cultural and Related Services
Swale Borough Council,29UM,17/10/2018,1162815,604.80,DCB (KENT) LIMITED,03532339                 ,PROPERTY SERVICES,Non-Planned Building Maintenance,Trading Undertaking
Swale Borough Council,29UM,17/10/2018,1162815,21.50,DCB (KENT) LIMITED,03532339                 ,PROPERTY SERVICES,Non-Planned Building Maintenance,Trading Undertaking
Swale Borough Council,29UM,17/10/2018,1162815,43.00,DCB (KENT) LIMITED,03532339                 ,SERVICE DELIVERY,Non-Planned Building Maintenance,Cultural and Related Services
Swale Borough Council,29UM,17/10/2018,1162815,79.79,DCB (KENT) LIMITED,03532339                 ,HOUSING SERVICES,General Maintenance,Housing
Swale Borough Council,29UM,17/10/2018,1162815,6554.76,DCB (KENT) LIMITED,03532339                 ,HOUSING SERVICES,Buildings Maintenance,Housing
Swale Borough Council,29UM,17/10/2018,1162815,46.97,DCB (KENT) LIMITED,03532339                 ,HOUSING SERVICES,General Maintenance,Housing
Swale Borough Council,29UM,17/10/2018,1162815,71.64,DCB (KENT) LIMITED,03532339                 ,HOUSING SERVICES,General Maintenance,Housing
Swale Borough Council,29UM,17/10/2018,1162815,21.50,DCB (KENT) LIMITED,03532339                 ,HOUSING SERVICES,General Maintenance,Housing
Swale Borough Council,29UM,17/10/2018,1162815,47.26,DCB (KENT) LIMITED,03532339                 ,HOUSING SERVICES,General Maintenance,Housing
Swale Borough Council,29UM,17/10/2018,1162815,21.50,DCB (KENT) LIMITED,03532339                 ,HOUSING SERVICES,General Maintenance,Housing
Swale Borough Council,29UM,17/10/2018,1162815,67.50,DCB (KENT) LIMITED,03532339                 ,PROPERTY SERVICES,Non-Planned Building Maintenance,Corporate & Democratic Core
Swale Borough Council,29UM,17/10/2018,1162815,270.00,DCB (KENT) LIMITED,03532339                 ,PROPERTY SERVICES,Non-Planned Building Maintenance,Corporate & Democratic Core
Swale Borough Council,29UM,17/10/2018,1162815,504.00,DCB (KENT) LIMITED,03532339                 ,PROPERTY SERVICES,Buildings Maintenance,Corporate & Democratic Core
Swale Borough Council,29UM,17/10/2018,1162815,248.09,DCB (KENT) LIMITED,03532339                 ,PROPERTY SERVICES,Non-Planned Building Maintenance,Corporate & Democratic Core
Swale Borough Council,29UM,17/10/2018,1162815,1288.00,DCB (KENT) LIMITED,03532339                 ,PROPERTY SERVICES,Buildings Maintenance,Corporate & Democratic Core
Swale Borough Council,29UM,17/10/2018,1162815,325.03,DCB (KENT) LIMITED,03532339                 ,PROPERTY SERVICES,Non-Planned Building Maintenance,Corporate & Democratic Core
Swale Borough Council,29UM,17/10/2018,1162815,899.70,DCB (KENT) LIMITED,03532339                 ,PROPERTY SERVICES,Buildings Maintenance,Corporate & Democratic Core
Swale Borough Council,29UM,17/10/2018,1162815,360.00,DCB (KENT) LIMITED,03532339                 ,PROPERTY SERVICES,Non-Planned Building Maintenance,Corporate & Democratic Core
Swale Borough Council,29UM,17/10/2018,1162815,21.50,DCB (KENT) LIMITED,03532339                 ,PROPERTY SERVICES,Non-Planned Building Maintenance,Corporate & Democratic Core
Swale Borough Council,29UM,17/10/2018,1162815,36.20,DCB (KENT) LIMITED,03532339                 ,PROPERTY SERVICES,Non-Planned Building Maintenance,Corporate & Democratic Core
Swale Borough Council,29UM,17/10/2018,1162815,123.20,DCB (KENT) LIMITED,03532339                 ,PROPERTY SERVICES,Non-Planned Building Maintenance,Corporate & Democratic Core
Swale Borough Council,29UM,17/10/2018,1162815,1680.00,DCB (KENT) LIMITED,03532339                 ,TOURISM & SPORTS DEVELOPMENT,Non-Planned Building Maintenance,Cultural and Related Services
Swale Borough Council,29UM,17/10/2018,1162815,119.87,DCB (KENT) LIMITED,03532339                 ,TOURISM & SPORTS DEVELOPMENT,Non-Planned Building Maintenance,Cultural and Related Services
Swale Borough Council,29UM,17/10/2018,1162815,46.36,DCB (KENT) LIMITED,03532339                 ,LEISURE & OPEN SPACES,Non-Planned Building Maintenance,Cultural and Related Services
Swale Borough Council,29UM,17/10/2018,1162815,22.50,DCB (KENT) LIMITED,03532339                 ,CONTRACT & PROCUREMENT,Non-Planned Building Maintenance,Environmental and Regulatory Services
Swale Borough Council,29UM,17/10/2018,1162815,27.10,DCB (KENT) LIMITED,03532339                 ,CONTRACT & PROCUREMENT,Non-Planned Building Maintenance,Environmental and Regulatory Services
Swale Borough Council,29UM,17/10/2018,1162815,21.50,DCB (KENT) LIMITED,03532339                 ,CONTRACT & PROCUREMENT,Non-Planned Building Maintenance,Environmental and Regulatory Services
Swale Borough Council,29UM,17/10/2018,1162815,21.50,DCB (KENT) LIMITED,03532339                 ,CONTRACT & PROCUREMENT,Non-Planned Building Maintenance,Environmental and Regulatory Services
Swale Borough Council,29UM,17/10/2018,1162815,22.50,DCB (KENT) LIMITED,03532339                 ,CONTRACT & PROCUREMENT,Non-Planned Building Maintenance,Environmental and Regulatory Services
Swale Borough Council,29UM,17/10/2018,1162815,79.77,DCB (KENT) LIMITED,03532339                 ,CONTRACT & PROCUREMENT,Non-Planned Building Maintenance,Environmental and Regulatory Services
Swale Borough Council,29UM,17/10/2018,1162815,62.03,DCB (KENT) LIMITED,03532339                 ,CONTRACT & PROCUREMENT,Non-Planned Building Maintenance,Environmental and Regulatory Services
Swale Borough Council,29UM,17/10/2018,1162815,53.60,DCB (KENT) LIMITED,03532339                 ,CONTRACT & PROCUREMENT,Non-Planned Building Maintenance,Environmental and Regulatory Services
Swale Borough Council,29UM,17/10/2018,1162815,22.50,DCB (KENT) LIMITED,03532339                 ,CONTRACT & PROCUREMENT,Non-Planned Building Maintenance,Environmental and Regulatory Services
Swale Borough Council,29UM,17/10/2018,1162815,75.33,DCB (KENT) LIMITED,03532339                 ,CONTRACT & PROCUREMENT,Non-Planned Building Maintenance,Environmental and Regulatory Services
Swale Borough Council,29UM,17/10/2018,1162815,78.72,DCB (KENT) LIMITED,03532339                 ,CONTRACT & PROCUREMENT,Non-Planned Building Maintenance,Environmental and Regulatory Services
Swale Borough Council,29UM,17/10/2018,1162815,24.18,DCB (KENT) LIMITED,03532339                 ,CONTRACT & PROCUREMENT,Non-Planned Building Maintenance,Environmental and Regulatory Services
Swale Borough Council,29UM,17/10/2018,1162815,333.59,DCB (KENT) LIMITED,03532339                 ,CONTRACT & PROCUREMENT,Non-Planned Building Maintenance,Environmental and Regulatory Services
Swale Borough Council,29UM,17/10/2018,1162815,21.50,DCB (KENT) LIMITED,03532339                 ,CONTRACT & PROCUREMENT,Non-Planned Building Maintenance,Environmental and Regulatory Services
Swale Borough Council,29UM,17/10/2018,1162815,83.45,DCB (KENT) LIMITED,03532339                 ,CONTRACT & PROCUREMENT,Non-Planned Building Maintenance,Environmental and Regulatory Services
Swale Borough Council,29UM,17/10/2018,1162815,22.50,DCB (KENT) LIMITED,03532339                 ,CONTRACT & PROCUREMENT,Non-Planned Building Maintenance,Environmental and Regulatory Services
Swale Borough Council,29UM,17/10/2018,1162815,45.00,DCB (KENT) LIMITED,03532339                 ,LEISURE & OPEN SPACES,Non-Planned Building Maintenance,Cultural and Related Services
Swale Borough Council,29UM,17/10/2018,1162815,1104.99,DCB (KENT) LIMITED,03532339                 ,LEISURE & OPEN SPACES,Non-Planned Building Maintenance,Cultural and Related Services
Swale Borough Council,29UM,17/10/2018,1162667,344.00,GEMINI CONSULTANTS LTD,2088382                  ,FINANCIAL SERVICES,Consultancy/Specialist Advice,Internal Trading Cost Centres
Swale Borough Council,29UM,17/10/2018,1162914,833.38,GLASDON U.K.LIMITED,2160576                  ,SERVICE DELIVERY,Maintenance - Grounds,Cultural and Related Services
Swale Borough Council,29UM,17/10/2018,1162695,770.00,HMCTS (DT),                         ,REVENUE SERVICES,Court Costs,Central Services to the Public
Swale Borough Council,29UM,17/10/2018,1163008,5400.00,HUBBARD & HOUGHTON CONSTRUCTION LTD,                         ,HOUSING SERVICES,Housing Renovation Grants,Not used in this Structure
Swale Borough Council,29UM,17/10/2018,1163009,4140.00,HUBBARD & HOUGHTON CONSTRUCTION LTD,                         ,HOUSING SERVICES,Housing Renovation Grants,Not used in this Structure
Swale Borough Council,29UM,17/10/2018,1162785,286.37,INSIGHT DIRECT (UK) LTD,2579852                  ,MKS ICT,Payments in Year,Ledger/Suspense Codes
Swale Borough Council,29UM,17/10/2018,1162944,413.10,INSIGHT DIRECT (UK) LTD,2579852                  ,MKS ICT,Computer Equipment & Materials,Internal Trading Cost Centres
Swale Borough Council,29UM,17/10/2018,1162651,915.75,INTEGRITY PRINT LTD,GB927217815              ,CAR PARKS,External Permit Printing,Highway and Transport Services
Swale Borough Council,29UM,17/10/2018,1162652,1526.25,INTEGRITY PRINT LTD,GB927217815              ,CAR PARKS,External Permit Printing,Highway and Transport Services
Swale Borough Council,29UM,17/10/2018,1162588,1500.00,KAREBEAR KENNELS LTD,                         ,ENVIRONMENTAL RESPONSE TEAM,Kennelling Of Dogs,Environmental and Regulatory Services
Swale Borough Council,29UM,17/10/2018,1162588,-250.00,KAREBEAR KENNELS LTD,                         ,ENVIRONMENTAL RESPONSE TEAM,Income collected by Dog Kennels,Environmental and Regulatory Services
Swale Borough Council,29UM,17/10/2018,1162728,1500.00,KAREBEAR KENNELS LTD,                         ,ENVIRONMENTAL RESPONSE TEAM,Kennelling Of Dogs,Environmental and Regulatory Services
Swale Borough Council,29UM,17/10/2018,1162728,-250.00,KAREBEAR KENNELS LTD,                         ,ENVIRONMENTAL RESPONSE TEAM,Income collected by Dog Kennels,Environmental and Regulatory Services
Swale Borough Council,29UM,17/10/2018,1162972,500.00,KENT COMPLEMENTARY THERAPIES,                         ,CHIEF EXECUTIVE,Fees and Services,Corporate & Democratic Core
Swale Borough Council,29UM,17/10/2018,1162954,21043.38,KENT COUNTY COUNCIL,                         ,COMMUNITY SAFETY,Fees and Services,Planning and Development Services
Swale Borough Council,29UM,17/10/2018,1162929,300.00,KENT COUNTY COUNCIL - BEACHES CC,                         ,ECONOMY & COMMUNITIES,Grants & Subscriptions,Central Services to the Public
Swale Borough Council,29UM,17/10/2018,1162918,1088.50,LEGACY TELECOM LTD,4674154                  ,MKS ICT,Payments in Year,Ledger/Suspense Codes
Swale Borough Council,29UM,17/10/2018,1162655,1000.00,LEMAR LIMITED,04350292                 ,CAR PARKS,Maintenance - Grounds,Highway and Transport Services
Swale Borough Council,29UM,17/10/2018,1162655,680.00,LEMAR LIMITED,04350292                 ,CAR PARKS,Maintenance - Grounds,Highway and Transport Services
Swale Borough Council,29UM,17/10/2018,1162733,300.00,LEMAR LIMITED,04350292                 ,CAR PARKS,Maintenance - Grounds,Highway and Transport Services
Swale Borough Council,29UM,17/10/2018,1162733,198.00,LEMAR LIMITED,04350292                 ,CAR PARKS,Maintenance - Grounds,Highway and Transport Services
Swale Borough Council,29UM,17/10/2018,1162741,395.00,LEMAR LIMITED,04350292                 ,LEISURE & OPEN SPACES,Maintenance - Grounds,Cultural and Related Services
Swale Borough Council,29UM,17/10/2018,1162741,300.00,LEMAR LIMITED,04350292                 ,LEISURE & OPEN SPACES,Maintenance - Grounds,Cultural and Related Services
Swale Borough Council,29UM,17/10/2018,1162742,600.00,LEMAR LIMITED,04350292                 ,LEISURE & OPEN SPACES,Maintenance - Grounds,Cultural and Related Services
Swale Borough Council,29UM,17/10/2018,1162742,395.00,LEMAR LIMITED,04350292                 ,LEISURE & OPEN SPACES,Maintenance - Grounds,Cultural and Related Services
Swale Borough Council,29UM,17/10/2018,1162743,1000.00,LEMAR LIMITED,04350292                 ,LEISURE & OPEN SPACES,Maintenance - Grounds,Cultural and Related Services
Swale Borough Council,29UM,17/10/2018,1162743,885.00,LEMAR LIMITED,04350292                 ,LEISURE & OPEN SPACES,Maintenance - Grounds,Cultural and Related Services
Swale Borough Council,29UM,17/10/2018,1162584,1575.00,LUSHLAND,4289261                  ,PLANNING SERVICES,Fees and Services,Planning and Development Services
Swale Borough Council,29UM,17/10/2018,1162693,690.53,MAIDSTONE BOROUGH COUNCIL,                         ,MKS ICT,Computer Equipment & Materials,Internal Trading Cost Centres
Swale Borough Council,29UM,17/10/2018,1162693,260.36,MAIDSTONE BOROUGH COUNCIL,                         ,COMMISSIONING & CUSTOMER CONTACT,Computer Equipment & Materials,Internal Trading Cost Centres
Swale Borough Council,29UM,17/10/2018,1162799,3015.00,MAINTEL EUROPE LIMITED,02665837                 ,COMMISSIONING & CUSTOMER CONTACT,Payments in Year,Ledger/Suspense Codes
Swale Borough Council,29UM,17/10/2018,1162721,13972.63,MATRIX SCM LTD,2227962                  ,HUMAN RESOURCES,Agency/Contract Staff,Internal Trading Cost Centres
Swale Borough Council,29UM,17/10/2018,1162898,8951.71,MATRIX SCM LTD,2227962                  ,HUMAN RESOURCES,Agency/Contract Staff,Internal Trading Cost Centres
Swale Borough Council,29UM,17/10/2018,1162777,748.00,MAYLOW CONSTRUCTION LTD,                         ,LEISURE & OPEN SPACES,Maintenance - Grounds,Cultural and Related Services
Swale Borough Council,29UM,17/10/2018,1162984,500.00,MEDWAY PUBLIC SERVICES LTD,10041989                 ,COMMUNITY SAFETY,Fees and Services,Environmental and Regulatory Services
Swale Borough Council,29UM,17/10/2018,1162985,550.00,MEDWAY PUBLIC SERVICES LTD,10041989                 ,COMMUNITY SAFETY,Fees and Services,Environmental and Regulatory Services
Swale Borough Council,29UM,17/10/2018,1162935,675.00,METROSIGNS 2000 (BEDFORD) LTD,4597343                  ,LEISURE & OPEN SPACES,Maintenance - Grounds,Cultural and Related Services
Swale Borough Council,29UM,17/10/2018,1162925,1000.00,MILTON CREEK TRUST,                         ,TOURISM & SPORTS DEVELOPMENT,Grants & Subscriptions,Cultural and Related Services
Swale Borough Council,29UM,17/10/2018,1162926,350.00,MILTON CREEK TRUST,                         ,ECONOMY & COMMUNITIES,Grants & Subscriptions,Central Services to the Public
Swale Borough Council,29UM,17/10/2018,1162842,250.00,MR J W GATES,                         ,SERVICE DELIVERY,Maintenance - Grounds,Cultural and Related Services
Swale Borough Council,29UM,17/10/2018,1163001,1000.00,NEW LEAF SUPPORT LTD,                         ,TOURISM & SPORTS DEVELOPMENT,Grants & Subscriptions,Cultural and Related Services
Swale Borough Council,29UM,17/10/2018,1162797,287.59,NPOWER,                         ,CAR PARKS,Electricity,Highway and Transport Services
Swale Borough Council,29UM,17/10/2018,1162897,2625.00,P BINNIE CONSULTANCY LTD,07794784                 ,ECONOMIC DEVELOPMENT,Consultancy/Specialist Advice,Planning and Development Services
Swale Borough Council,29UM,17/10/2018,1161244,21320.00,PARAMOUNT INDEPENDENT PROPERTY SERVICES,                         ,HOUSING SERVICES,NL (Nightly Lets) - Homelessness Landlord Payments,Housing
Swale Borough Council,29UM,17/10/2018,1161971,26553.00,PARAMOUNT INDEPENDENT PROPERTY SERVICES,                         ,HOUSING SERVICES,NL (Nightly Lets) - Homelessness Landlord Payments,Housing
Swale Borough Council,29UM,17/10/2018,1162763,2750.00,PATHFINDER DEVELOPMENT CONSULTANTS LTD,08666821                 ,PLANNING SERVICES,Fees and Services,Planning and Development Services
Swale Borough Council,29UM,17/10/2018,1162565,119.00,PINSENT MASONS LLP,OC333653                 ,ECONOMIC DEVELOPMENT,Fees and Services,Planning and Development Services
Swale Borough Council,29UM,17/10/2018,1162565,93.00,PINSENT MASONS LLP,OC333653                 ,ECONOMIC DEVELOPMENT,Fees - Land Registry,Planning and Development Services
Swale Borough Council,29UM,17/10/2018,1162565,110.47,PINSENT MASONS LLP,OC333653                 ,ECONOMIC DEVELOPMENT,Fees and Services,Planning and Development Services
Swale Borough Council,29UM,17/10/2018,1162565,26571.50,PINSENT MASONS LLP,OC333653                 ,FINANCIAL SERVICES,STC - Capitalised Fees And Charges,Not used in this Structure
Swale Borough Council,29UM,17/10/2018,1162565,1780.00,PINSENT MASONS LLP,OC333653                 ,FINANCIAL SERVICES,STC - Capitalised Fees And Charges,Not used in this Structure
Swale Borough Council,29UM,17/10/2018,1162804,420.00,REGENT GUEST HOUSE LTD,06537084                 ,HOUSING SERVICES,B & B - Homelessness Landlord Payments,Housing
Swale Borough Council,29UM,17/10/2018,1162624,800.00,ROADMARKING EXCEL LTD,08121734                 ,CAR PARKS,Resurfacing,Highway and Transport Services
Swale Borough Council,29UM,17/10/2018,1162800,8032.72,ROYAL MAIL GROUP LTD,4138203                  ,DEMOCRATIC & ELECTORAL SERVICES,Postage,Central Services to the Public
Swale Borough Council,29UM,17/10/2018,1162922,885.80,RSP RAIL TRAVEL ACCOUNT - (DT),                         ,FINANCIAL SERVICES,Travel Warrants (Staff Travel),Internal Trading Cost Centres
Swale Borough Council,29UM,17/10/2018,1162642,375.00,RURAL PLANNING LTD,4426249                  ,PLANNING SERVICES,Fees and Services,Planning and Development Services
Swale Borough Council,29UM,17/10/2018,1162053,3017.16,S & J SERVICES,                         ,LEISURE & OPEN SPACES,Maintenance - Grounds,Cultural and Related Services
Swale Borough Council,29UM,17/10/2018,1162053,2098.50,S & J SERVICES,                         ,LEISURE & OPEN SPACES,Maintenance - Grounds,Cultural and Related Services
Swale Borough Council,29UM,17/10/2018,1162953,14500.00,SATEDA,                         ,COMMUNITY SAFETY,Grants & Subscriptions,Environmental and Regulatory Services
Swale Borough Council,29UM,17/10/2018,1162978,6636.75,SHARP BUSINESS SYSTEMS UK,2136901                  ,MKS ICT,Equipment Rental,Holding Codes
Swale Borough Council,29UM,17/10/2018,1162979,2689.47,SHARP BUSINESS SYSTEMS UK,2136901                  ,MKS ICT,Equipment Rental,Holding Codes
Swale Borough Council,29UM,17/10/2018,1162899,271.00,SHEERNESS MARKET TRADERS CO-OPERATIVE,                         ,TOURISM & SPORTS DEVELOPMENT,Fees and Services,Trading Undertaking
Swale Borough Council,29UM,17/10/2018,1162813,2950.00,SITEIMPROVE LTD,4932868                  ,COMMUNICATIONS,Fees - Licence,Internal Trading Cost Centres
Swale Borough Council,29UM,17/10/2018,1162846,500.00,SITTINGBOURNE ORPHEUS CHORAL SOCIETY,                         ,TOURISM & SPORTS DEVELOPMENT,Grants & Subscriptions,Cultural and Related Services
Swale Borough Council,29UM,17/10/2018,1162761,29.04,SODEXO MOTIVATION SOLUTIONS UK LTD,2680629                  ,HUMAN RESOURCES,Fees and Services,Corporate & Democratic Core
Swale Borough Council,29UM,17/10/2018,1162968,417.06,SOUTHERN COMMUNICATIONS LTD,1328040                  ,MKS ICT,Telephone,Corporate & Democratic Core
Swale Borough Council,29UM,17/10/2018,1162969,356.32,SOUTHERN COMMUNICATIONS LTD,1328040                  ,MKS ICT,Telephone,Corporate & Democratic Core
Swale Borough Council,29UM,17/10/2018,1162789,34113.00,STG BUILDING CONTROL PARTNERSHIP,                         ,PLANNING SERVICES,Contracts,Planning and Development Services
Swale Borough Council,29UM,17/10/2018,1162816,500.00,SWALE EMPLOYEES ASSOCIATION,                         ,CHIEF EXECUTIVE,Catering Provisions,Corporate & Democratic Core
Swale Borough Council,29UM,17/10/2018,1162779,265.00,THE ALEXANDER CENTRE TRUST LIMITED,07281634                 ,COMMUNITY SAFETY,Catering Provisions,Planning and Development Services
Swale Borough Council,29UM,17/10/2018,1162779,120.00,THE ALEXANDER CENTRE TRUST LIMITED,07281634                 ,COMMUNITY SAFETY,Hire Of Premises,Planning and Development Services
Swale Borough Council,29UM,17/10/2018,1162927,300.00,THE DOLPHIN SAILING BARGE MUSEUM TRUST,                         ,ECONOMY & COMMUNITIES,Grants & Subscriptions,Central Services to the Public
Swale Borough Council,29UM,17/10/2018,1162847,3600.00,THE FAVERSHAM SOCIETY,250945                   ,TOURISM & SPORTS DEVELOPMENT,Grants & Subscriptions,Cultural and Related Services
Swale Borough Council,29UM,17/10/2018,1162583,1425.00,THE OYSTER PARTNERSHIP,05020374                 ,PLANNING SERVICES,Agency/Contract Staff,Planning and Development Services
Swale Borough Council,29UM,17/10/2018,1162817,1425.00,THE OYSTER PARTNERSHIP,05020374                 ,PLANNING SERVICES,Agency/Contract Staff,Planning and Development Services
Swale Borough Council,29UM,17/10/2018,1162818,1425.00,THE OYSTER PARTNERSHIP,05020374                 ,PLANNING SERVICES,Agency/Contract Staff,Planning and Development Services
Swale Borough Council,29UM,17/10/2018,1162559,530.00,THREE TOWNS OFFICE EQUIPMENT LTD,                         ,CONTRACT & PROCUREMENT,Furniture,Internal Trading Cost Centres
Swale Borough Council,29UM,17/10/2018,1162843,425.47,VR SANI-CO LTD,3588359                  ,CONTRACT & PROCUREMENT,Hygiene Service Contracts,Environmental and Regulatory Services
Swale Borough Council,29UM,17/10/2018,1162919,23.84,VR SANI-CO LTD,3588359                  ,TOURISM & SPORTS DEVELOPMENT,Service Contracts,Cultural and Related Services
Swale Borough Council,29UM,17/10/2018,1162919,12.50,VR SANI-CO LTD,3588359                  ,TOURISM & SPORTS DEVELOPMENT,Service Contracts,Cultural and Related Services
Swale Borough Council,29UM,17/10/2018,1162919,28.17,VR SANI-CO LTD,3588359                  ,TOURISM & SPORTS DEVELOPMENT,Service Contracts,Cultural and Related Services
Swale Borough Council,29UM,17/10/2018,1162919,35.76,VR SANI-CO LTD,3588359                  ,PROPERTY SERVICES,Service Contracts,Cultural and Related Services
Swale Borough Council,29UM,17/10/2018,1162919,5.96,VR SANI-CO LTD,3588359                  ,COMMUNITY SAFETY,Service Contracts,Cultural and Related Services
Swale Borough Council,29UM,17/10/2018,1162919,26.07,VR SANI-CO LTD,3588359                  ,TOURISM & SPORTS DEVELOPMENT,Service Contracts,Cultural and Related Services
Swale Borough Council,29UM,17/10/2018,1162919,26.00,VR SANI-CO LTD,3588359                  ,PROPERTY SERVICES,Service Contracts,Corporate & Democratic Core
Swale Borough Council,29UM,17/10/2018,1162919,214.56,VR SANI-CO LTD,3588359                  ,PROPERTY SERVICES,Service Contracts,Corporate & Democratic Core
Swale Borough Council,29UM,17/10/2018,1162919,50.00,VR SANI-CO LTD,3588359                  ,PROPERTY SERVICES,Service Contracts,Corporate & Democratic Core
Swale Borough Council,29UM,17/10/2018,1162919,14.08,VR SANI-CO LTD,3588359                  ,PROPERTY SERVICES,Service Contracts,Corporate & Democratic Core
Swale Borough Council,29UM,17/10/2018,1162748,250.00,WEED MANAGEMENT LTD,4321175                  ,LEISURE & OPEN SPACES,Maintenance - Grounds,Cultural and Related Services
Swale Borough Council,29UM,17/10/2018,1162483,302.16,WHISTL UK LIMITED,04417047                 ,REVENUE SERVICES,Postage,Central Services to the Public
Swale Borough Council,29UM,17/10/2018,1162483,151.10,WHISTL UK LIMITED,04417047                 ,REVENUE SERVICES,Postage,Housing
Swale Borough Council,29UM,17/10/2018,1162483,7.13,WHISTL UK LIMITED,04417047                 ,CAR PARKS,Postage,Internal Trading Cost Centres
Swale Borough Council,29UM,17/10/2018,1162483,84.13,WHISTL UK LIMITED,04417047                 ,PROPERTY SERVICES,Postage,Holding Codes
Swale Borough Council,29UM,17/10/2018,1162483,258.32,WHISTL UK LIMITED,04417047                 ,DEMOCRATIC & ELECTORAL SERVICES,Postage,Central Services to the Public
Swale Borough Council,29UM,17/10/2018,1162692,496.75,WHISTL UK LIMITED,04417047                 ,REVENUE SERVICES,Postage,Central Services to the Public
Swale Borough Council,29UM,17/10/2018,1162692,248.37,WHISTL UK LIMITED,04417047                 ,REVENUE SERVICES,Postage,Housing
Swale Borough Council,29UM,17/10/2018,1162692,32.12,WHISTL UK LIMITED,04417047                 ,CAR PARKS,Postage,Internal Trading Cost Centres
Swale Borough Council,29UM,17/10/2018,1162692,49.88,WHISTL UK LIMITED,04417047                 ,PROPERTY SERVICES,Postage,Holding Codes
Swale Borough Council,29UM,17/10/2018,1162692,237.79,WHISTL UK LIMITED,04417047                 ,DEMOCRATIC & ELECTORAL SERVICES,Postage,Central Services to the Public
Swale Borough Council,29UM,17/10/2018,1162806,389.23,WILDCARE,07543969                 ,LEISURE & OPEN SPACES,Equipment Purchase,Cultural and Related Services
Swale Borough Council,29UM,17/10/2018,1163011,6661.68,WILLOW TREE HOME SOLUTIONS LTD,                         ,HOUSING SERVICES,Housing Renovation Grants,Not used in this Structure
Swale Borough Council,29UM,24/10/2018,1163157,17473.50,ACORN MAINTENANCE SERVICES,3546898                  ,HOUSING SERVICES,Housing Renovation Grants,Not used in this Structure
Swale Borough Council,29UM,24/10/2018,1163158,3338.55,ACORN MAINTENANCE SERVICES,3546898                  ,HOUSING SERVICES,Housing Renovation Grants,Not used in this Structure
Swale Borough Council,29UM,24/10/2018,1162982,2600.00,AIREY CONSULTANCY SERVICE LTD,                         ,REVENUE SERVICES,Fees and Services,Central Services to the Public
Swale Borough Council,29UM,24/10/2018,1162987,98.21,ALLSTAR BUSINESS SOLUTIONS LTD - (DT),1073098                  ,SERVICE DELIVERY,Petrol/Derv & Oil,Cultural and Related Services
Swale Borough Council,29UM,24/10/2018,1162987,212.18,ALLSTAR BUSINESS SOLUTIONS LTD - (DT),1073098                  ,ENVIRONMENTAL RESPONSE TEAM,Fuel For Contract Vehicles,Internal Trading Cost Centres
Swale Borough Council,29UM,24/10/2018,1162987,28.01,ALLSTAR BUSINESS SOLUTIONS LTD - (DT),1073098                  ,LEISURE & OPEN SPACES,Fuel For Contract Vehicles,Cultural and Related Services
Swale Borough Council,29UM,24/10/2018,1162987,58.99,ALLSTAR BUSINESS SOLUTIONS LTD - (DT),1073098                  ,ENVIRONMENTAL RESPONSE TEAM,Fuel For Contract Vehicles,Environmental and Regulatory Services
Swale Borough Council,29UM,24/10/2018,1162987,85.06,ALLSTAR BUSINESS SOLUTIONS LTD - (DT),1073098                  ,HOUSING SERVICES,Fuel For Contract Vehicles,Housing
Swale Borough Council,29UM,24/10/2018,1163025,633.08,BLENWOOD LTD,4383277                  ,LEISURE & OPEN SPACES,Maintenance - Grounds,Cultural and Related Services
Swale Borough Council,29UM,24/10/2018,1163026,316.54,BLENWOOD LTD,4383277                  ,LEISURE & OPEN SPACES,Nursery Stock,Environmental and Regulatory Services
Swale Borough Council,29UM,24/10/2018,1163030,833.58,BLENWOOD LTD,4383277                  ,LEISURE & OPEN SPACES,Maintenance - Grounds,Environmental and Regulatory Services
Swale Borough Council,29UM,24/10/2018,1163092,614.64,BLENWOOD LTD,4383277                  ,LEISURE & OPEN SPACES,Maintenance - Grounds,Environmental and Regulatory Services
Swale Borough Council,29UM,24/10/2018,1163102,913.08,BLENWOOD LTD,4383277                  ,LEISURE & OPEN SPACES,Maintenance - Grounds,Environmental and Regulatory Services
Swale Borough Council,29UM,24/10/2018,1163049,3914.81,BROADWAY ESTATES,                         ,REVENUE SERVICES,KCC Relocation Scheme - Expenditure,Housing
Swale Borough Council,29UM,24/10/2018,1163035,1648.25,CHALKWELL COACH HIRE LTD,2520842                  ,TOURISM & SPORTS DEVELOPMENT,Fees and Services,Cultural and Related Services
Swale Borough Council,29UM,24/10/2018,1163051,500.00,CITIZENS ADVICE BUREAU IN SWALE,5052691                  ,ECONOMY & COMMUNITIES,Grants & Subscriptions,Central Services to the Public
Swale Borough Council,29UM,24/10/2018,1163000,720.00,CITY OF LONDON,                         ,MKS ENVIRONMENTAL SERVICES,Sampling / Monitoring,Environmental and Regulatory Services
Swale Borough Council,29UM,24/10/2018,1163159,793.33,COLDWELL CONSTRUCTION LTD,4814340                  ,HOUSING SERVICES,Housing Renovation Grants,Not used in this Structure
Swale Borough Council,29UM,24/10/2018,1163057,500.00,FAV. COMM. CHRISTMAS LIGHTS COMM.,                         ,ECONOMY & COMMUNITIES,Grants & Subscriptions,Central Services to the Public
Swale Borough Council,29UM,24/10/2018,1162519,20000.00,FAVERSHAM SWIMMING POOL MNGMT COMM LTD,                         ,DIRECTOR OF REGENERATION,Grants & Subscriptions,Cultural and Related Services
Swale Borough Council,29UM,24/10/2018,1163060,300.00,FAVERSHAM YOUTH CHOIR,                         ,ECONOMY & COMMUNITIES,Grants & Subscriptions,Central Services to the Public
Swale Borough Council,29UM,24/10/2018,1162812,750.00,FOX WILLIAMS LLP,OC320160                 ,DIRECTOR OF REGENERATION,Capitalised Fees And Charges,Not used in this Structure
Swale Borough Council,29UM,24/10/2018,1162812,150.00,FOX WILLIAMS LLP,OC320160                 ,DIRECTOR OF REGENERATION,Capitalised Fees And Charges,Not used in this Structure
Swale Borough Council,29UM,24/10/2018,1162913,3992.55,GLASDON U.K.LIMITED,2160576                  ,ENVIRONMENTAL RESPONSE TEAM,Equipment Purchase,Planning and Development Services
Swale Borough Council,29UM,24/10/2018,1163160,2512.60,HIGHER ELEVATION LTD,4078005                  ,HOUSING SERVICES,Housing Renovation Grants,Not used in this Structure
Swale Borough Council,29UM,24/10/2018,1163091,274.00,HUBBARD & HOUGHTON CONSTRUCTION LTD,                         ,HOUSING SERVICES,Staying Put small repairs (contractors),Housing
Swale Borough Council,29UM,24/10/2018,1163155,8144.42,HUBBARD & HOUGHTON CONSTRUCTION LTD,                         ,HOUSING SERVICES,Housing Renovation Grants,Not used in this Structure
Swale Borough Council,29UM,24/10/2018,1163156,2578.45,HUBBARD & HOUGHTON CONSTRUCTION LTD,                         ,HOUSING SERVICES,Housing Renovation Grants,Not used in this Structure
Swale Borough Council,29UM,24/10/2018,1163089,1001.52,IDOX SOFTWARE LTD,06706798                 ,DEMOCRATIC & ELECTORAL SERVICES,Fees and Services,Central Services to the Public
Swale Borough Council,29UM,24/10/2018,1162993,1850.00,INTEGRA ASSOCIATES LIMITED,03054901                 ,FINANCIAL SERVICES,Capitalised Fees And Charges,Not used in this Structure
Swale Borough Council,29UM,24/10/2018,1162805,1226.00,INVVU CONSTRUCTION CONSULTANTS LTD,10967367                 ,PLANNING SERVICES,Payments in Year,Ledger/Suspense Codes
Swale Borough Council,29UM,24/10/2018,1162671,200.00,J N CLEARANCE,                         ,LEISURE & OPEN SPACES,Maintenance - Grounds,Environmental and Regulatory Services
Swale Borough Council,29UM,24/10/2018,1162671,100.00,J N CLEARANCE,                         ,LEISURE & OPEN SPACES,Maintenance - Grounds,Environmental and Regulatory Services
Swale Borough Council,29UM,24/10/2018,1162671,75.00,J N CLEARANCE,                         ,LEISURE & OPEN SPACES,Maintenance - Grounds,Cultural and Related Services
Swale Borough Council,29UM,24/10/2018,1162807,2991.50,KENT COUNTY COUNCIL,                         ,COMMISSIONING & CUSTOMER CONTACT,Contracts,Internal Trading Cost Centres
Swale Borough Council,29UM,24/10/2018,1162916,3229.99,KENT COUNTY COUNCIL (KCS),                         ,PROPERTY SERVICES,Electricity,Corporate & Democratic Core
Swale Borough Council,29UM,24/10/2018,1162917,676.05,KENT COUNTY COUNCIL (KCS),                         ,PROPERTY SERVICES,Gas,Corporate & Democratic Core
Swale Borough Council,29UM,24/10/2018,1162994,3988.90,KINGDOM SECURITY LIMITED,2795197                  ,ENVIRONMENTAL RESPONSE TEAM,Fees and Services,Planning and Development Services
Swale Borough Council,29UM,24/10/2018,1163125,7500.00,LANDMARK CHAMBERS,                         ,PLANNING SERVICES,Legal Fees,Planning and Development Services
Swale Borough Council,29UM,24/10/2018,1162988,300.00,LEMAR LIMITED,04350292                 ,CAR PARKS,Maintenance - Grounds,Highway and Transport Services
Swale Borough Council,29UM,24/10/2018,1162988,195.00,LEMAR LIMITED,04350292                 ,CAR PARKS,Maintenance - Grounds,Highway and Transport Services
Swale Borough Council,29UM,24/10/2018,1162989,500.00,LEMAR LIMITED,04350292                 ,LEISURE & OPEN SPACES,Maintenance - Grounds,Environmental and Regulatory Services
Swale Borough Council,29UM,24/10/2018,1162989,414.00,LEMAR LIMITED,04350292                 ,LEISURE & OPEN SPACES,Maintenance - Grounds,Environmental and Regulatory Services
Swale Borough Council,29UM,24/10/2018,1162955,1325.39,LLOYDS BANK - (DT),                         ,FINANCIAL SERVICES,Bank Charges,Corporate & Democratic Core
Swale Borough Council,29UM,24/10/2018,1162626,398590.90,LOWER MEDWAY INTERNAL DRAINAGE BO,                         ,FINANCIAL SERVICES,Lmidb - Drainage Rates,Other Operating Expenditure
Swale Borough Council,29UM,24/10/2018,1162634,9521.04,MAIDSTONE BOROUGH COUNCIL,                         ,CONTRACT & PROCUREMENT,Private Contractors,Environmental and Regulatory Services
Swale Borough Council,29UM,24/10/2018,1162634,25742.06,MAIDSTONE BOROUGH COUNCIL,                         ,CONTRACT & PROCUREMENT,Private Contractors,Environmental and Regulatory Services
Swale Borough Council,29UM,24/10/2018,1162720,21506.65,MAIDSTONE BOROUGH COUNCIL,                         ,CONTRACT & PROCUREMENT,Equipment Purchase,Environmental and Regulatory Services
Swale Borough Council,29UM,24/10/2018,1162720,595.00,MAIDSTONE BOROUGH COUNCIL,                         ,CONTRACT & PROCUREMENT,Clinical Waste,Environmental and Regulatory Services
Swale Borough Council,29UM,24/10/2018,1162720,4565.14,MAIDSTONE BOROUGH COUNCIL,                         ,CONTRACT & PROCUREMENT,"Clearance Of Waste,Fly Tipping",Environmental and Regulatory Services
Swale Borough Council,29UM,24/10/2018,1162720,2935.14,MAIDSTONE BOROUGH COUNCIL,                         ,CONTRACT & PROCUREMENT,Variations To Contract,Environmental and Regulatory Services
Swale Borough Council,29UM,24/10/2018,1162905,5000.00,MAIDSTONE BOROUGH COUNCIL,                         ,REVENUE SERVICES,Fees and Services,Housing
Swale Borough Council,29UM,24/10/2018,1163185,837086.00,MAIDSTONE BOROUGH COUNCIL - DT,                         ,FINANCIAL SERVICES,Tariff to Gvt,Taxation and Non-Specific Grant Income
Swale Borough Council,29UM,24/10/2018,1162945,570.00,MAXWELL AMENITY LIMITED,02152566                 ,LEISURE & OPEN SPACES,Maintenance - Grounds,Cultural and Related Services
Swale Borough Council,29UM,24/10/2018,1162772,3533.00,MAYLOW CONSTRUCTION LTD,                         ,LEISURE & OPEN SPACES,Maintenance - Grounds,Cultural and Related Services
Swale Borough Council,29UM,24/10/2018,1163096,678.00,MAYLOW CONSTRUCTION LTD,                         ,LEISURE & OPEN SPACES,Maintenance - Grounds,Cultural and Related Services
Swale Borough Council,29UM,24/10/2018,1163131,500.00,MR J W GATES,                         ,LEISURE & OPEN SPACES,Maintenance - Grounds,Cultural and Related Services
Swale Borough Council,29UM,24/10/2018,1163131,80.00,MR J W GATES,                         ,LEISURE & OPEN SPACES,Maintenance - Grounds,Cultural and Related Services
Swale Borough Council,29UM,24/10/2018,1163131,200.00,MR J W GATES,                         ,LEISURE & OPEN SPACES,Maintenance - Grounds,Cultural and Related Services
Swale Borough Council,29UM,24/10/2018,1162966,267.97,NPOWER,                         ,LEISURE & OPEN SPACES,Electricity,Cultural and Related Services
Swale Borough Council,29UM,24/10/2018,1162999,641.37,O2 (UK) LTD,1743099                  ,MKS ICT,Telephone,Corporate & Democratic Core
Swale Borough Council,29UM,24/10/2018,1163037,132.38,REDACTED PERSONAL INFORMATION,                         ,REVENUE SERVICES,KCC Relocation Scheme - Expenditure,Housing
Swale Borough Council,29UM,24/10/2018,1163037,132.38,REDACTED PERSONAL INFORMATION,                         ,REVENUE SERVICES,KCC Relocation Scheme - Expenditure,Housing
Swale Borough Council,29UM,24/10/2018,1162992,75153.00,QUEENBOROUGH HARBOUR TRUST,                         ,ECONOMIC DEVELOPMENT,Payments in Year,Ledger/Suspense Codes
Swale Borough Council,29UM,24/10/2018,1163004,100.27,R & S INCE TARMACING LTD,4825501                  ,CAR PARKS,Maintenance - Grounds,Highway and Transport Services
Swale Borough Council,29UM,24/10/2018,1163004,299.73,R & S INCE TARMACING LTD,4825501                  ,CAR PARKS,Maintenance - Grounds,Highway and Transport Services
Swale Borough Council,29UM,24/10/2018,1163005,100.27,R & S INCE TARMACING LTD,4825501                  ,CAR PARKS,Maintenance - Grounds,Highway and Transport Services
Swale Borough Council,29UM,24/10/2018,1163005,279.73,R & S INCE TARMACING LTD,4825501                  ,CAR PARKS,Maintenance - Grounds,Highway and Transport Services
Swale Borough Council,29UM,24/10/2018,1163198,5.69,RBS PURCHASING CARD (DT) - MORRISONS,,DEMOCRATIC & ELECTORAL SERVICES,Catering Provisions,Corporate & Democratic Core
Swale Borough Council,29UM,24/10/2018,1163199,31.05,RBS PURCHASING CARD (DT) - SAINSBURY'S,,ECONOMY & COMMUNITIES,Catering Provisions,Cultural and Related Services
Swale Borough Council,29UM,24/10/2018,1163200,40.00,RBS PURCHASING CARD (DT) - WWW.ICO.GOV.UK,,CORPORATE SERVICES,Members - Outside Bodies Allowance,Corporate & Democratic Core
Swale Borough Council,29UM,24/10/2018,1163200,9.92,RBS PURCHASING CARD (DT) - AMAZON,,RESILIENCE PLANNING,Equipment Purchase,Central Services to the Public
Swale Borough Council,29UM,24/10/2018,1163200,40.00,RBS PURCHASING CARD (DT) - WWW.ICO.GOV.UK,,CORPORATE SERVICES,Members - Outside Bodies Allowance,Corporate & Democratic Core
Swale Borough Council,29UM,24/10/2018,1163200,40.00,RBS PURCHASING CARD (DT) - WWW.ICO.GOV.UK,,CORPORATE SERVICES,Members - Outside Bodies Allowance,Corporate & Democratic Core
Swale Borough Council,29UM,24/10/2018,1163200,40.00,RBS PURCHASING CARD (DT) - WWW.ICO.GOV.UK,,CORPORATE SERVICES,Members - Outside Bodies Allowance,Corporate & Democratic Core
Swale Borough Council,29UM,24/10/2018,1163200,40.00,RBS PURCHASING CARD (DT) - WWW.ICO.GOV.UK,,CORPORATE SERVICES,Members - Outside Bodies Allowance,Corporate & Democratic Core
Swale Borough Council,29UM,24/10/2018,1163200,40.00,RBS PURCHASING CARD (DT) - WWW.ICO.GOV.UK,,CORPORATE SERVICES,Members - Outside Bodies Allowance,Corporate & Democratic Core
Swale Borough Council,29UM,24/10/2018,1163201,4.00,RBS PURCHASING CARD (DT) - ICELAND,,DIRECTOR OF REGENERATION,Catering Provisions,Internal Trading Cost Centres
Swale Borough Council,29UM,24/10/2018,1163201,17.10,RBS PURCHASING CARD (DT) - SAINSBURY'S,,DIRECTOR OF REGENERATION,Catering Provisions,Internal Trading Cost Centres
Swale Borough Council,29UM,24/10/2018,1163201,5.50,RBS PURCHASING CARD (DT) - ICELAND,,MKS LEGAL SERVICES,Catering Provisions,Internal Trading Cost Centres
Swale Borough Council,29UM,24/10/2018,1163201,79.99,RBS PURCHASING CARD (DT) - MICROSOFT ,,CONTRACT & PROCUREMENT,Computer Equipment & Materials,Internal Trading Cost Centres
Swale Borough Council,29UM,24/10/2018,1163202,38.70,RBS PURCHASING CARD (DT) - SITTINGBOURNE SHOES,,HOUSING SERVICES,General Maintenance,Housing
Swale Borough Council,29UM,24/10/2018,1163203,9.17,RBS PURCHASING CARD (DT) - AMAZON,,CHIEF EXECUTIVE,"Books, Journals & e-resources",Internal Trading Cost Centres
Swale Borough Council,29UM,24/10/2018,1163203,11.42,RBS PURCHASING CARD (DT) - EMPARK UK LTD,,CHIEF EXECUTIVE,Car Park Fees,Internal Trading Cost Centres
Swale Borough Council,29UM,24/10/2018,1163204,79.56,RBS PURCHASING CARD (DT) - BREWERS SITTINGBOURNE,,HOUSING SERVICES,Staying Put - Materials,Housing
Swale Borough Council,29UM,24/10/2018,1163205,122.00,RBS PURCHASING CARD (DT) - MARKS & SPENSER,                         ,MKS LEGAL SERVICES,Catering Provisions,Internal Trading Cost Centres
Swale Borough Council,29UM,24/10/2018,1163205,11.05,RBS PURCHASING CARD (DT) - ICELAND,                         ,MKS LEGAL SERVICES,Catering Provisions,Internal Trading Cost Centres
Swale Borough Council,29UM,24/10/2018,1163205,40.00,RBS PURCHASING CARD (DT) - INTERFLORA,                         ,MKS LEGAL SERVICES,Fees and Services,Internal Trading Cost Centres
Swale Borough Council,29UM,24/10/2018,1163205,30.00,RBS PURCHASING CARD (DT) - CINEWORLD,                         ,MKS LEGAL SERVICES,Fees and Services,Internal Trading Cost Centres
Swale Borough Council,29UM,24/10/2018,1163205,6.05,RBS PURCHASING CARD (DT) - POUNDLAND,                         ,MKS LEGAL SERVICES,Catering Provisions,Internal Trading Cost Centres
Swale Borough Council,29UM,24/10/2018,1163205,40.00,RBS PURCHASING CARD (DT) - INTERFLORA,                         ,MKS LEGAL SERVICES,Fees and Services,Internal Trading Cost Centres
Swale Borough Council,29UM,24/10/2018,1163205,121.50,RBS PURCHASING CARD (DT) - CILEX,,MKS LEGAL SERVICES,Training - Courses,Internal Trading Cost Centres
Swale Borough Council,29UM,24/10/2018,1163206,19.17,RBS PURCHASING CARD (DT) - AMAZON,,ENVIRONMENTAL RESPONSE TEAM,Equipment Purchase,Environmental and Regulatory Services
Swale Borough Council,29UM,24/10/2018,1163207,100.42,RBS PURCHASING CARD (DT) - PREMIER INN,,COMMISSIONING & CUSTOMER CONTACT,Conference,Internal Trading Cost Centres
Swale Borough Council,29UM,24/10/2018,1163207,13.90,RBS PURCHASING CARD (DT) - PREMIER INN,,COMMISSIONING & CUSTOMER CONTACT,Conference,Internal Trading Cost Centres
Swale Borough Council,29UM,24/10/2018,1163207,16.04,RBS PURCHASING CARD (DT) - STARBUCKS,,COMMISSIONING & CUSTOMER CONTACT,Conference,Internal Trading Cost Centres
Swale Borough Council,29UM,24/10/2018,1162952,8280.00,REDACTED PERSONAL INFORMATION,                         ,HOUSING SERVICES,LIS - Landlord Payments (new in 2018),Housing
Swale Borough Council,29UM,24/10/2018,1163075,616.45,S & J SERVICES,                         ,LEISURE & OPEN SPACES,Maintenance - Grounds,Cultural and Related Services
Swale Borough Council,29UM,24/10/2018,1163075,510.05,S & J SERVICES,                         ,LEISURE & OPEN SPACES,Maintenance - Grounds,Cultural and Related Services
Swale Borough Council,29UM,24/10/2018,1162962,735.02,SCOTTISH WATER BUSINESS STREAM LTD,SC294924                 ,LEISURE & OPEN SPACES,Water - Metered,Cultural and Related Services
Swale Borough Council,29UM,24/10/2018,1162963,609.95,SCOTTISH WATER BUSINESS STREAM LTD,SC294924                 ,LEISURE & OPEN SPACES,Water - Metered,Cultural and Related Services
Swale Borough Council,29UM,24/10/2018,1163062,562.02,SCOTTISH WATER BUSINESS STREAM LTD,SC294924                 ,LEISURE & OPEN SPACES,Water - Metered,Cultural and Related Services
Swale Borough Council,29UM,24/10/2018,1163105,598.00,SHARNWOOD DEVELOPMENTS LTD,                         ,HOUSING SERVICES,RDS - Landlord claim on Bond Scheme,Housing
Swale Borough Council,29UM,24/10/2018,1163059,575.00,SHEPPEY ESTATES,                         ,HOUSING SERVICES,Homelessness  Prevention Services,Housing
Swale Borough Council,29UM,24/10/2018,1162990,3000.00,SITTINGBOURNE ORPHEUS CHORAL SOCIETY,                         ,ECONOMY & COMMUNITIES,Communities Fund Expenditure,Ledger/Suspense Codes
Swale Borough Council,29UM,24/10/2018,1163033,511.20,SONAR ECOLOGY,9190813                  ,LEISURE & OPEN SPACES,Maintenance - Grounds,Environmental and Regulatory Services
Swale Borough Council,29UM,24/10/2018,1163162,8370.24,SOUTH EAST BUILDING CO LTD,1786838                  ,HOUSING SERVICES,Housing Renovation Grants,Not used in this Structure
Swale Borough Council,29UM,24/10/2018,1163038,519.00,SQUARECUBE ARTISANS,                         ,TOURISM & SPORTS DEVELOPMENT,Grants & Subscriptions,Cultural and Related Services
Swale Borough Council,29UM,24/10/2018,1163090,550.00,SWALE EMPLOYEES ASSOCIATION,                         ,HUMAN RESOURCES,Grants & Subscriptions,Corporate & Democratic Core
Swale Borough Council,29UM,24/10/2018,1163050,1425.00,THE OYSTER PARTNERSHIP,05020374                 ,PLANNING SERVICES,Agency/Contract Staff,Planning and Development Services
Swale Borough Council,29UM,24/10/2018,1163074,2520.00,UNIT4 BUSINESS SOFTWARE LIMITED,1737985                  ,FINANCIAL SERVICES,Consultancy/Specialist Advice,Internal Trading Cost Centres
Swale Borough Council,29UM,24/10/2018,1163056,320.00,UPCHURCH PARISH COUNCIL,                         ,ECONOMY & COMMUNITIES,Grants & Subscriptions,Central Services to the Public
Swale Borough Council,29UM,24/10/2018,1163032,800.00,VISIT KENT,                         ,TOURISM & SPORTS DEVELOPMENT,Fees and Services,Cultural and Related Services
Swale Borough Council,29UM,24/10/2018,1163130,1620.00,VISIT KENT,                         ,TOURISM & SPORTS DEVELOPMENT,Fees and Services,Cultural and Related Services
Swale Borough Council,29UM,24/10/2018,1163052,960.00,WEALD WOODSCAPES LTD,8028446                  ,LEISURE & OPEN SPACES,Maintenance - Grounds,Cultural and Related Services
Swale Borough Council,29UM,24/10/2018,1162910,2925.83,WILLOW TREE HOME SOLUTIONS LTD,                         ,HOUSING SERVICES,Rechargeable Environ Works,Housing
Swale Borough Council,29UM,24/10/2018,1163058,460.00,WILLOW TREE HOME SOLUTIONS LTD,                         ,HOUSING SERVICES,Staying Put small repairs (contractors),Housing
Swale Borough Council,29UM,24/10/2018,1163161,5044.39,WILLOW TREE HOME SOLUTIONS LTD,                         ,HOUSING SERVICES,Housing Renovation Grants,Not used in this Structure
Swale Borough Council,29UM,24/10/2018,1163187,1894.12,WORLDPAY (DT),07316500                 ,REVENUE SERVICES,Commission Paid,Central Services to the Public
Swale Borough Council,29UM,24/10/2018,1163187,23.18,WORLDPAY (DT),07316500                 ,REVENUE SERVICES,Commission Paid,Central Services to the Public
Swale Borough Council,29UM,24/10/2018,1163187,23.18,WORLDPAY (DT),07316500                 ,REVENUE SERVICES,Commission Paid,Housing
Swale Borough Council,29UM,24/10/2018,1163187,11.59,WORLDPAY (DT),07316500                 ,EXCHEQUER,Commission Paid,Internal Trading Cost Centres
Swale Borough Council,29UM,24/10/2018,1163187,463.60,WORLDPAY (DT),07316500                 ,EXCHEQUER,Commission Paid,Internal Trading Cost Centres
Swale Borough Council,29UM,24/10/2018,1163187,4.39,WORLDPAY (DT),07316500                 ,EXCHEQUER,Commission Paid,Internal Trading Cost Centres
Swale Borough Council,29UM,24/10/2018,1163188,1453.92,WORLDPAY (DT),07316500                 ,REVENUE SERVICES,Commission Paid,Central Services to the Public
Swale Borough Council,29UM,24/10/2018,1163188,18.76,WORLDPAY (DT),07316500                 ,REVENUE SERVICES,Commission Paid,Central Services to the Public
Swale Borough Council,29UM,24/10/2018,1163188,18.76,WORLDPAY (DT),07316500                 ,REVENUE SERVICES,Commission Paid,Housing
Swale Borough Council,29UM,24/10/2018,1163188,9.38,WORLDPAY (DT),07316500                 ,EXCHEQUER,Commission Paid,Internal Trading Cost Centres
Swale Borough Council,29UM,24/10/2018,1163188,375.20,WORLDPAY (DT),07316500                 ,EXCHEQUER,Commission Paid,Internal Trading Cost Centres
Swale Borough Council,29UM,24/10/2018,1163188,2.28,WORLDPAY (DT),07316500                 ,EXCHEQUER,Commission Paid,Internal Trading Cost Centres
Swale Borough Council,29UM,24/10/2018,1162746,9999.60,WYBONE LTD,952455                   ,CONTRACT & PROCUREMENT,Equipment Purchase,Environmental and Regulatory Services
Swale Borough Council,29UM,31/10/2018,1163175,500.00,A.C MACKLIN FENCING,10311550                 ,LEISURE & OPEN SPACES,Maintenance - Grounds,Cultural and Related Services
Swale Borough Council,29UM,31/10/2018,1163175,485.00,A.C MACKLIN FENCING,10311550                 ,LEISURE & OPEN SPACES,Maintenance - Grounds,Cultural and Related Services
Swale Borough Council,29UM,31/10/2018,1163176,360.00,A.C MACKLIN FENCING,10311550                 ,LEISURE & OPEN SPACES,Maintenance - Grounds,Cultural and Related Services
Swale Borough Council,29UM,31/10/2018,1163176,927.98,A.C MACKLIN FENCING,10311550                 ,LEISURE & OPEN SPACES,Maintenance - Grounds,Cultural and Related Services
Swale Borough Council,29UM,31/10/2018,1163281,5000.00,ALLEN FORD (UK) LTD T/A SMC,04782818                 ,FINANCIAL SERVICES,Payments in Year,Ledger/Suspense Codes
Swale Borough Council,29UM,31/10/2018,1163122,10465.00,ARLINGCLOSE LTD,2853836                  ,FINANCIAL SERVICES,STC - Capitalised Fees And Charges,Not used in this Structure
Swale Borough Council,29UM,31/10/2018,1163289,5825.00,ASCENDIT LIFTS LTD,3493530                  ,HOUSING SERVICES,Housing Renovation Grants,Not used in this Structure
Swale Borough Council,29UM,31/10/2018,1163255,830.80,ATLAS FACILITIES MANAGEMENT LTD,05572730                 ,PROPERTY SERVICES,Fees and Services,Trading Undertaking
Swale Borough Council,29UM,31/10/2018,1163111,380.00,BAILEYS COFFEE SHOP AND SANDWICH BAR,                         ,PLANNING SERVICES,Catering Provisions,Internal Trading Cost Centres
Swale Borough Council,29UM,31/10/2018,1163029,763.50,BLENWOOD LTD,4383277                  ,LEISURE & OPEN SPACES,Maintenance - Grounds,Cultural and Related Services
Swale Borough Council,29UM,31/10/2018,1163236,10970.10,BLOOM PROCUREMENT SERVICES LTD,08045123                 ,PLANNING SERVICES,Fees and Services,Planning and Development Services
Swale Borough Council,29UM,31/10/2018,1163237,18283.50,BLOOM PROCUREMENT SERVICES LTD,08045123                 ,PLANNING SERVICES,Fees and Services,Planning and Development Services
Swale Borough Council,29UM,31/10/2018,1163275,3855.00,COHESION PLUS KENT,6924474                  ,COMMUNITY SAFETY,Fees and Services,Planning and Development Services
Swale Borough Council,29UM,31/10/2018,1163275,1300.00,COHESION PLUS KENT,6924474                  ,COMMUNITY SAFETY,Fees and Services,Environmental and Regulatory Services
Swale Borough Council,29UM,31/10/2018,1163215,1500.00,CONNECT CONSULTANTS LTD,6001923                  ,TOURISM & SPORTS DEVELOPMENT,Fees and Services,Trading Undertaking
Swale Borough Council,29UM,31/10/2018,1163217,6500.00,CUSHMAN & WAKEFIELD DEBENHAM T L LTD,2757768                  ,PROPERTY SERVICES,Fees and Services,Trading Undertaking
Swale Borough Council,29UM,31/10/2018,1163288,6473.65,DAYTRAD LIMITED,7654373                  ,HOUSING SERVICES,Housing Renovation Grants,Not used in this Structure
Swale Borough Council,29UM,31/10/2018,1162981,2420.10,DESIGN FOR HOMES LTD,03996067                 ,PLANNING SERVICES,Coaches / Minibus,Planning and Development Services
Swale Borough Council,29UM,31/10/2018,1163291,5400.00,DOLPHIN STAIRLIFTS (KENT),04181846                 ,HOUSING SERVICES,Housing Renovation Grants,Not used in this Structure
Swale Borough Council,29UM,31/10/2018,1163132,4362.50,ENVITECH EUROPE LTD,SC367372                 ,MKS ENVIRONMENTAL SERVICES,Private Contractors,Environmental and Regulatory Services
Swale Borough Council,29UM,31/10/2018,1163213,659.17,FAVERSHAM TROPHIES,                         ,CHIEF EXECUTIVE,Prizes/Awards,Public Health
Swale Borough Council,29UM,31/10/2018,1163141,677.60,FOUNDRY CHAMBERS,                         ,PLANNING SERVICES,Legal Fees,Planning and Development Services
Swale Borough Council,29UM,31/10/2018,1163141,135.52,FOUNDRY CHAMBERS,                         ,PLANNING SERVICES,Legal Fees,Planning and Development Services
Swale Borough Council,29UM,31/10/2018,1163117,780.00,HERITAGE BLAST CLEANING LTD,08139099                 ,LEISURE & OPEN SPACES,Maintenance - Grounds,Environmental and Regulatory Services
Swale Borough Council,29UM,31/10/2018,1163117,1525.00,HERITAGE BLAST CLEANING LTD,08139099                 ,LEISURE & OPEN SPACES,Maintenance - Grounds,Environmental and Regulatory Services
Swale Borough Council,29UM,31/10/2018,1163286,4500.00,HUBBARD & HOUGHTON CONSTRUCTION LTD,                         ,HOUSING SERVICES,Housing Renovation Grants,Not used in this Structure
Swale Borough Council,29UM,31/10/2018,1163287,1377.00,HUBBARD & HOUGHTON CONSTRUCTION LTD,                         ,HOUSING SERVICES,Housing Renovation Grants,Not used in this Structure
Swale Borough Council,29UM,31/10/2018,1163328,575960.78,HUBER CAR PARK SYST INTL GMBH (DT),                         ,FINANCIAL SERVICES,STC - Capitalised Fees And Charges,Not used in this Structure
Swale Borough Council,29UM,31/10/2018,1163290,7354.05,J & D SYSTEMS,                         ,HOUSING SERVICES,Housing Renovation Grants,Not used in this Structure
Swale Borough Council,29UM,31/10/2018,1163263,1075.60,REDACTED PERSONAL INFORMATION,                         ,TOURISM & SPORTS DEVELOPMENT,Fees and Services,Cultural and Related Services
Swale Borough Council,29UM,31/10/2018,1163174,549.77,LAMBERHURST ENGINEERING LTD,3595260                  ,LEISURE & OPEN SPACES,Equipment Purchase,Cultural and Related Services
Swale Borough Council,29UM,31/10/2018,1163258,4999.98,LUBBE & SONS (BULBS) LTD,836902                   ,LEISURE & OPEN SPACES,Nursery Stock,Cultural and Related Services
Swale Borough Council,29UM,31/10/2018,1162722,16300.00,MAIDSTONE BOROUGH COUNCIL,                         ,MKS ICT,MKS Charges for ICT,Internal Trading Cost Centres
Swale Borough Council,29UM,31/10/2018,1162723,46928.84,MAIDSTONE BOROUGH COUNCIL,                         ,AUDIT,MKS Charges for Audit Services,Internal Trading Cost Centres
Swale Borough Council,29UM,31/10/2018,1162736,102295.00,MAIDSTONE BOROUGH COUNCIL,                         ,MKS ICT,MKS Charges for ICT,Internal Trading Cost Centres
Swale Borough Council,29UM,31/10/2018,1162908,43613.36,MAIDSTONE BOROUGH COUNCIL,                         ,CONTRACT & PROCUREMENT,Equipment Purchase,Environmental and Regulatory Services
Swale Borough Council,29UM,31/10/2018,1162908,-11485.53,MAIDSTONE BOROUGH COUNCIL,                         ,CONTRACT & PROCUREMENT,Private Contractors,Environmental and Regulatory Services
Swale Borough Council,29UM,31/10/2018,1162909,5452.34,MAIDSTONE BOROUGH COUNCIL,                         ,CONTRACT & PROCUREMENT,"Clearance Of Waste,Fly Tipping",Environmental and Regulatory Services
Swale Borough Council,29UM,31/10/2018,1162909,467.96,MAIDSTONE BOROUGH COUNCIL,                         ,CONTRACT & PROCUREMENT,Variations To Contract,Environmental and Regulatory Services
Swale Borough Council,29UM,31/10/2018,1163109,66270.00,MAIDSTONE BOROUGH COUNCIL,                         ,PLANNING SERVICES,MKS Charges for Planning,Internal Trading Cost Centres
Swale Borough Council,29UM,31/10/2018,1163047,13462.60,MATRIX SCM LTD,2227962                  ,HUMAN RESOURCES,Agency/Contract Staff,Internal Trading Cost Centres
Swale Borough Council,29UM,31/10/2018,1163197,14306.34,MATRIX SCM LTD,2227962                  ,HUMAN RESOURCES,Agency/Contract Staff,Internal Trading Cost Centres
Swale Borough Council,29UM,31/10/2018,1163114,4650.00,REDACTED PERSONAL INFORMATION,                         ,HOUSING SERVICES,LIS - Landlord Payments (new in 2018),Housing
Swale Borough Council,29UM,31/10/2018,1163244,1518.00,MAYLOW CONSTRUCTION LTD,                         ,LEISURE & OPEN SPACES,Maintenance - Grounds,Cultural and Related Services
Swale Borough Council,29UM,31/10/2018,1163244,1231.00,MAYLOW CONSTRUCTION LTD,                         ,LEISURE & OPEN SPACES,Maintenance - Grounds,Cultural and Related Services
Swale Borough Council,29UM,31/10/2018,1163245,680.00,METRIC GROUP LTD,2560839                  ,CAR PARKS,Fees - Licence,Highway and Transport Services
Swale Borough Council,29UM,31/10/2018,1163246,270.00,METRIC GROUP LTD,2560839                  ,CAR PARKS,Fees - Licence,Highway and Transport Services
Swale Borough Council,29UM,31/10/2018,1163126,5638.68,MPS MARKETING SERVICES LIMITED,6360656                  ,DEMOCRATIC & ELECTORAL SERVICES,Fees and Services,Central Services to the Public
Swale Borough Council,29UM,31/10/2018,1163214,350.00,REDACTED PERSONAL INFORMATION,                         ,ENVIRONMENTAL RESPONSE TEAM,Legal Fees,Planning and Development Services
Swale Borough Council,29UM,31/10/2018,1163214,70.00,REDACTED PERSONAL INFORMATION,                         ,ENVIRONMENTAL RESPONSE TEAM,Legal Fees,Planning and Development Services
Swale Borough Council,29UM,31/10/2018,1162564,633.64,O2 (UK) LTD,1743099                  ,MKS ICT,Telephone,Corporate & Democratic Core
Swale Borough Council,29UM,31/10/2018,1162564,22.50,O2 (UK) LTD,1743099                  ,MKS ICT,Telephone,Corporate & Democratic Core
Swale Borough Council,29UM,31/10/2018,1163254,290.34,PORTAKABIN LIMITED,685303                   ,LEISURE & OPEN SPACES,Maintenance - Grounds,Environmental and Regulatory Services
Swale Borough Council,29UM,31/10/2018,1163276,15282.04,QUEENBOROUGH HARBOUR TRUST,                         ,ECONOMIC DEVELOPMENT,Payments in Year,Ledger/Suspense Codes
Swale Borough Council,29UM,31/10/2018,1162986,2295.00,RECOLLECT SYSTEMS INC,                         ,CONTRACT & PROCUREMENT,Waste and Recycling Promotion / Comm's Projects,Environmental and Regulatory Services
Swale Borough Council,29UM,31/10/2018,1163251,1447.36,ROYAL MAIL GROUP LTD,4138203                  ,DEMOCRATIC & ELECTORAL SERVICES,Postage,Central Services to the Public
Swale Borough Council,29UM,31/10/2018,1163285,4560.00,REDACTED PERSONAL INFORMATION,                         ,HOUSING SERVICES,Housing Renovation Grants,Not used in this Structure
Swale Borough Council,29UM,31/10/2018,1163274,350.00,SOLACE,04053417                 ,CHIEF EXECUTIVE,Grants & Subscriptions,Internal Trading Cost Centres
Swale Borough Council,29UM,31/10/2018,1163218,600.00,SWALE FILM FESTIVAL,                         ,ECONOMY & COMMUNITIES,Grants & Subscriptions,Central Services to the Public
Swale Borough Council,29UM,31/10/2018,1163142,700.00,TEYNHAM COMMUNITY PRE-SCHOOL,                         ,ECONOMY & COMMUNITIES,Grants & Subscriptions,Central Services to the Public
Swale Borough Council,29UM,31/10/2018,1163271,1000.00,THE FRIENDS OF MILTON REGIS COURT HALL,                         ,TOURISM & SPORTS DEVELOPMENT,Grants & Subscriptions,Cultural and Related Services
Swale Borough Council,29UM,31/10/2018,1163208,1444.00,THE OYSTER PARTNERSHIP,05020374                 ,PLANNING SERVICES,Agency/Contract Staff,Planning and Development Services
Swale Borough Council,29UM,31/10/2018,1163266,600.00,TRIPLE A EVENTS LTD,08952363                 ,TOURISM & SPORTS DEVELOPMENT,Fees and Services,Cultural and Related Services
Swale Borough Council,29UM,31/10/2018,1162425,41503.81,UNIT4 BUSINESS SOFTWARE LIMITED,1737985                  ,FINANCIAL SERVICES,Computer Equipment & Materials,Internal Trading Cost Centres
Swale Borough Council,29UM,31/10/2018,1163216,750.00,UPCHURCH PARISH COUNCIL,                         ,TOURISM & SPORTS DEVELOPMENT,Grants & Subscriptions,Cultural and Related Services
Swale Borough Council,29UM,31/10/2018,1163249,433.30,VANITORIALS LIMITED,3952938                  ,PROPERTY SERVICES,Cleaning Materials,Internal Trading Cost Centres
Swale Borough Council,29UM,31/10/2018,1163267,650.00,WEDDLE & CO LTD,4543074                  ,LEISURE & OPEN SPACES,Maintenance - Grounds,Cultural and Related Services
Swale Borough Council,29UM,31/10/2018,1162911,456.84,WHISTL UK LIMITED,04417047                 ,REVENUE SERVICES,Postage,Central Services to the Public
Swale Borough Council,29UM,31/10/2018,1162911,228.42,WHISTL UK LIMITED,04417047                 ,REVENUE SERVICES,Postage,Housing
Swale Borough Council,29UM,31/10/2018,1162911,12.04,WHISTL UK LIMITED,04417047                 ,CAR PARKS,Postage,Internal Trading Cost Centres
Swale Borough Council,29UM,31/10/2018,1162911,29.74,WHISTL UK LIMITED,04417047                 ,PROPERTY SERVICES,Postage,Holding Codes
Swale Borough Council,29UM,31/10/2018,1162911,214.91,WHISTL UK LIMITED,04417047                 ,DEMOCRATIC & ELECTORAL SERVICES,Postage,Central Services to the Public
Swale Borough Council,29UM,31/10/2018,1163053,1085.48,WHISTL UK LIMITED,04417047                 ,REVENUE SERVICES,Postage,Central Services to the Public
Swale Borough Council,29UM,31/10/2018,1163053,542.74,WHISTL UK LIMITED,04417047                 ,REVENUE SERVICES,Postage,Housing
Swale Borough Council,29UM,31/10/2018,1163053,13.51,WHISTL UK LIMITED,04417047                 ,CAR PARKS,Postage,Internal Trading Cost Centres
Swale Borough Council,29UM,31/10/2018,1163053,165.58,WHISTL UK LIMITED,04417047                 ,PROPERTY SERVICES,Postage,Holding Codes
Swale Borough Council,29UM,31/10/2018,1163053,361.20,WHISTL UK LIMITED,04417047                 ,DEMOCRATIC & ELECTORAL SERVICES,Postage,Central Services to the Public
Swale Borough Council,29UM,31/10/2018,1163154,432.58,WHISTL UK LIMITED,04417047                 ,REVENUE SERVICES,Postage,Central Services to the Public
Swale Borough Council,29UM,31/10/2018,1163154,216.29,WHISTL UK LIMITED,04417047                 ,REVENUE SERVICES,Postage,Housing
Swale Borough Council,29UM,31/10/2018,1163154,15.08,WHISTL UK LIMITED,04417047                 ,CAR PARKS,Postage,Internal Trading Cost Centres
Swale Borough Council,29UM,31/10/2018,1163154,171.63,WHISTL UK LIMITED,04417047                 ,PROPERTY SERVICES,Postage,Holding Codes
Swale Borough Council,29UM,31/10/2018,1163154,317.60,WHISTL UK LIMITED,04417047                 ,DEMOCRATIC & ELECTORAL SERVICES,Postage,Central Services to the Public
Swale Borough Council,29UM,31/10/2018,1163163,20300.00,WICKSTEED LEISURE LTD,00603152                 ,LEISURE & OPEN SPACES,Construction,Not used in this Structure
Swale Borough Council,29UM,31/10/2018,1163284,1024.00,WILLOW TREE HOME SOLUTIONS LTD,                         ,HOUSING SERVICES,Housing Renovation Grants,Not used in this Structure
